Workbook

Sheet Sheet1
A1: Indication of FFR results for tender round 102, accepted tenders will be officially notified via issued acceptance letter
A3: Tender Ref | B3: Status | C3: Rejection Code | D3: Company Name | E3: Tendered Unit (BMU/Unit ID) | F3: TO connection / DNO connection | G3: Generation Type | H3: Start Date | I3: End Date | J3: Tendered Period (dd.mm.yy - dd.mm.yy) | K3: Applicable FFR Capability Data Table | L3: Tendered Frames per Service Day | U3: Tendered Prices*** | Y3: BMUs Only - Applicable Balancing Service (i.e. ABSVD Imbalance) YES/NO | Z3: Dynamic Providers Only | AD3: Dynamic Providers only | AK3: Please indicate as per detail change provision if you are adding volume | AL3: Please state the accepted tender that you are stacking onto | AM3: Please state if this is an all or nothing bid. Clearly reference what lines are included in each all or nothing bid | AN3: Non-Dynamic Providers | AP3: Comments
L4: Working Days (Mon-Fri) | O4: Saturdays | R4: Sundays/Bank Holidays | U4: Availability Fee (£/h) | V4: Nomination Fee (£/h) | W4: Window Initiation Fee (£/window) | X4: Response Energy Fee (Non-BM only) (£/MW/h) | Z4: Maximum Part Load Point (MW) | AA4: Minimum Part Load Point (MW) | AB4: Minimum MEL (MW) | AC4: Maximum SEL (MW) | AN4: Volume of Response Tendered
L5: From | M5: To | N5: Duration (h) | O5: From | P5: To | Q5: Duration (h) | R5: From | S5: To | T5: Duration (h) | AD5: Primary Response (max.) @ 0.2Hz (MW) | AE5: Primary Response (max.) @ 0.5Hz (MW) | AF5: Primary Response (max.) @ 0.8Hz (MW) | AG5: Secondary Response (max.) @ 0.2/0.2Hz (MW) | AH5: Secondary Response (max.) @ 0.5/0.5Hz (MW) | AI5: High Frequency Response (max.) @ 0.2Hz (MW) | AJ5: High Frequency Response (max.) @ 0.5Hz (MW) | AN5: Automatic Response Energy Deliverable by 10s (MW) | AO5: Automatic Response Energy Deliverable by 30s (MW)
A6: 102 | D6: Example Company | E6: Ex-FFR-1 | F6: TO connection | G6: Wind | H6: =Sheet2!B7 -> 2018-06-01 | I6: =Sheet2!B8 -> 2019-05-31 | J6: =TEXT(H6,"DD.MM.YY")&" - "&TEXT(I6,"DD.MM.YY")&" ("&DATEDIF(H6,I6+1,"m")&" months)" -> 01.06.18 - 31.05.19 (12 months) | K6: As per FFR framework agreement | L6: 23:00:00 | M6: 07:00:00 | N6: 8 | O6: 23:00:00 | P6: 07:00:00 | Q6: 8 | R6: 23:00:00 | S6: 07:00:00 | T6: 8 | U6: 100 | V6: 600 | W6: - | X6: - | Y6: - | Z6: - | AA6: - | AB6: - | AC6: - | AD6: - | AE6: - | AF6: - | AG6: - | AH6: - | AI6: - | AJ6: - | AK6: - | AL6: - | AN6: - | AO6: - | AP6: -
A7: =A6 -> 102 | D7: Example Company | E7: =E6 -> Ex-FFR-1 | F7: DNO connection | G7: Gas | H7: =H6 -> 2018-06-01 | I7: =I6 -> 2019-05-31 | J7: =TEXT(H7,"DD.MM.YY")&" - "&TEXT(I7,"DD.MM.YY")&" ("&DATEDIF(H7,I7+1,"m")&" months)" -> 01.06.18 - 31.05.19 (12 months) | K7: As per FFR framework agreement | L7: 07:00:00 | M7: 23:00:00 | N7: 16 | O7: 07:00:00 | P7: 23:00:00 | Q7: 16 | R7: 07:00:00 | S7: 23:00:00 | T7: 16 | U7: 600 | V7: 100 | W7: - | X7: - | Y7: - | Z7: - | AA7: - | AB7: - | AC7: - | AD7: - | AE7: - | AF7: - | AG7: - | AH7: - | AI7: - | AJ7: - | AK7: - | AL7: - | AN7: - | AO7: - | AP7: -
A8: =A6+0.001 -> 102.001 | B8: Reject | C8: 1.3 | D8: Arenko Cleantech Limited | E8: AR02-FFR | F8: DNO connection | G8: Battery | H8: 2019-03-31 | I8: 2019-09-30 | J8: 31.03.19 - 30.09.19 (6 months) | K8: As per FFR framework agreement | L8: 2300 | M8: 700 | N8: =IF(L8>M8, (2400-L8+M8)/100, IF(L8=M8, 24, (M8-L8)/100)) -> 8 | O8: 2300 | P8: 700 | Q8: =IF(O8>P8, (2400-O8+P8)/100, IF(O8=P8, 24, (P8-O8)/100)) -> 8 | R8: 2300 | S8: 700 | T8: =IF(R8>S8, (2400-R8+S8)/100, IF(R8=S8, 24, (S8-R8)/100)) -> 8 | U8: 362.44 | V8: 0 | W8: 0 | X8: 0 | AD8: 16.4 | AE8: 41 | AF8: 41 | AG8: 16.4 | AH8: 41 | AI8: 0 | AJ8: 0
A9: =A8+0.001 -> 102.002 | B9: Reject | C9: 1.3 | D9: Arenko Cleantech Limited | E9: AR02-FFR | F9: DNO connection | G9: Battery | H9: 2019-09-30 | I9: 2020-03-31 | J9: 30.09.19 - 31.03.20 (6 months) | K9: As per FFR framework agreement | L9: 2300 | M9: 700 | N9: 8 | O9: 2300 | P9: 700 | Q9: 8 | R9: 2300 | S9: 700 | T9: 8 | U9: 362.44 | V9: 0 | W9: 0 | X9: 0 | AD9: 16.4 | AE9: 41 | AF9: 41 | AG9: 16.4 | AH9: 41 | AI9: 0 | AJ9: 0
A10: 102.003 | B10: Reject | C10: 1.3 | D10: Arenko Cleantech Limited | E10: AR02-FFR | F10: DNO connection | G10: Battery | H10: 2020-03-31 | I10: 2020-09-30 | J10: 31.03.20 - 30.09.20 (6 months) | K10: As per FFR framework agreement | L10: 2300 | M10: 700 | N10: 8 | O10: 2300 | P10: 700 | Q10: 8 | R10: 2300 | S10: 700 | T10: 8 | U10: 362.44 | V10: 0 | W10: 0 | X10: 0 | AD10: 16.4 | AE10: 41 | AF10: 41 | AG10: 16.4 | AH10: 41 | AI10: 0 | AJ10: 0
A11: 102.004 | B11: Reject | C11: 1.3 | D11: Arenko Cleantech Limited | E11: AR02-FFR | F11: DNO connection | G11: Battery | H11: 2019-03-31 | I11: 2019-09-30 | J11: 31.03.19 - 30.09.19 (6 months) | K11: As per FFR framework agreement | L11: 2300 | M11: 700 | N11: 8 | O11: 2300 | P11: 700 | Q11: 8 | R11: 2300 | S11: 700 | T11: 8 | U11: 84 | V11: 0 | W11: 0 | X11: 0 | AD11: 0 | AE11: 0 | AF11: 0 | AG11: 0 | AH11: 0 | AI11: 6 | AJ11: 15
A12: 102.005 | B12: Reject | C12: 1.3 | D12: Arenko Cleantech Limited | E12: AR02-FFR | F12: DNO connection | G12: Battery | H12: 2019-09-30 | I12: 2020-03-31 | J12: 30.09.19 - 31.03.20 (6 months) | K12: As per FFR framework agreement | L12: 2300 | M12: 700 | N12: 8 | O12: 2300 | P12: 700 | Q12: 8 | R12: 2300 | S12: 700 | T12: 8 | U12: 196 | V12: 0 | W12: 0 | X12: 0 | AD12: 0 | AE12: 0 | AF12: 0 | AG12: 0 | AH12: 0 | AI12: 14 | AJ12: 35
A13: 102.006 | B13: Reject | C13: 1.3 | D13: Arenko Cleantech Limited | E13: AR02-FFR | F13: DNO connection | G13: Battery | H13: 2020-03-31 | I13: 2020-09-30 | J13: 31.03.20 - 30.09.20 (6 months) | K13: As per FFR framework agreement | L13: 2300 | M13: 700 | N13: 8 | O13: 2300 | P13: 700 | Q13: 8 | R13: 2300 | S13: 700 | T13: 8 | U13: 196 | V13: 0 | W13: 0 | X13: 0 | AD13: 0 | AE13: 0 | AF13: 0 | AG13: 0 | AH13: 0 | AI13: 14 | AJ13: 35
A14: 102.007 | B14: Reject | C14: 1.3 | D14: Aura Power Storage Solutions Ltd | E14: AURAF-1 | F14: DNO Connection | G14: Battery | H14: 2018-10-01 | I14: 2019-03-31 | J14: 01.10.18 - 31.03.19 (6 months) | K14: As per FFR framework agreement | L14: 2300 | M14: 700 | N14: 8 | O14: 2300 | P14: 700 | Q14: 8 | R14: 2300 | S14: 700 | T14: 8 | U14: 158 | V14: 0 | W14: 0 | X14: 0 | Y14: - | Z14: - | AA14: - | AB14: - | AC14: - | AD14: =0.4*20 -> 8 | AE14: =1*20 -> 20 | AF14: =20 -> 20 | AG14: =0.4*20 -> 8 | AH14: 20 | AI14: =0.4*20 -> 8 | AJ14: =20 -> 20 | AK14: No | AL14: - | AM14: A | AN14: - | AO14: - | AP14: All or nothing Bid A
A15: 102.008 | B15: Reject | C15: 2 | D15: Aura Power Storage Solutions Ltd | E15: AURAF-1 | F15: DNO Connection | G15: Battery | H15: 2019-04-01 | I15: 2019-09-30 | J15: 01.04.19 - 30.09.19 (6 months) | K15: As per FFR framework agreement | L15: 2300 | M15: 700 | N15: 8 | O15: 2300 | P15: 700 | Q15: 8 | R15: 2300 | S15: 700 | T15: =IF(R15>S15, (2400-R15+S15)/100, IF(R15=S15, 24, (S15-R15)/100)) -> 8 | U15: 240 | V15: 0 | W15: 0 | X15: 0 | Y15: - | Z15: - | AA15: - | AB15: - | AC15: - | AD15: =0.4*20 -> 8 | AE15: =1*20 -> 20 | AF15: =20 -> 20 | AG15: =0.4*20 -> 8 | AH15: 20 | AI15: =0.4*20 -> 8 | AJ15: =20 -> 20 | AK15: No | AL15: - | AM15: A | AN15: - | AO15: - | AP15: All or nothing Bid A
A16: 102.009 | B16: Reject | C16: 1.3 | D16: Aura Power Storage Solutions Ltd | E16: AURAF-1 | F16: DNO Connection | G16: Battery | H16: 2019-04-01 | I16: 2019-09-30 | J16: 01.04.19 - 30.09.19 (6 months) | K16: As per FFR framework agreement | L16: 700 | M16: 2300 | N16: 16 | O16: 700 | P16: 2300 | Q16: 16 | R16: 700 | S16: 2300 | T16: 16 | U16: 90 | V16: 0 | W16: 0 | X16: 0 | Y16: - | Z16: - | AA16: - | AB16: - | AC16: - | AD16: 8 | AE16: 20 | AF16: =20 -> 20 | AG16: 8 | AH16: 20 | AI16: 8 | AJ16: =20 -> 20 | AK16: No | AL16: - | AM16: A | AN16: - | AO16: - | AP16: All or nothing Bid A
A17: 102.01 | B17: Reject | C17: 2 | D17: Aura Power Storage Solutions Ltd | E17: AURAF-1 | F17: DNO Connection | G17: Battery | H17: 2019-10-01 | I17: 2020-03-31 | J17: 01.10.19 - 31.03.20 (6 months) | K17: As per FFR framework agreement | L17: 2300 | M17: 700 | N17: 8 | O17: 2300 | P17: 700 | Q17: 8 | R17: 2300 | S17: 700 | T17: 8 | U17: 306 | V17: 0 | W17: 0 | X17: 0 | Y17: - | Z17: - | AA17: - | AB17: - | AC17: - | AD17: 8 | AE17: 20 | AF17: =20 -> 20 | AG17: 8 | AH17: 20 | AI17: 8 | AJ17: =20 -> 20 | AK17: No | AL17: - | AM17: A | AN17: - | AO17: - | AP17: All or nothing Bid A
A18: =A17+0.001 -> 102.011 | B18: Reject | C18: 1.3 | D18: Aura Power Storage Solutions Ltd | E18: AURAF-1 | F18: DNO Connection | G18: Battery | H18: 2019-10-01 | I18: 2020-03-31 | J18: 01.10.19 - 31.03.20 (6 months) | K18: As per FFR framework agreement | L18: 700 | M18: 2300 | N18: 16 | O18: 700 | P18: 2300 | Q18: 16 | R18: 700 | S18: 2300 | T18: 16 | U18: 148 | V18: 0 | W18: 0 | X18: 0 | Y18: - | Z18: - | AA18: - | AB18: - | AC18: - | AD18: 8 | AE18: 20 | AF18: =20 -> 20 | AG18: 8 | AH18: 20 | AI18: 8 | AJ18: =20 -> 20 | AK18: No | AL18: - | AM18: A | AN18: - | AO18: - | AP18: All or nothing Bid A
A19: 102.012 | B19: Reject | C19: 2 | D19: Aura Power Storage Solutions Ltd | E19: AURAF-1 | F19: DNO Connection | G19: Battery | H19: 2020-04-01 | I19: 2020-09-30 | J19: 01.04.20 - 30.09.20 (6 months) | K19: As per FFR framework agreement | L19: 2300 | M19: 700 | N19: 8 | O19: 2300 | P19: 700 | Q19: 8 | R19: 2300 | S19: 700 | T19: 8 | U19: 380 | V19: 0 | W19: 0 | X19: 0 | Y19: - | Z19: - | AA19: - | AB19: - | AC19: - | AD19: 8 | AE19: 20 | AF19: =20 -> 20 | AG19: 8 | AH19: 20 | AI19: 8 | AJ19: =20 -> 20 | AK19: No | AL19: - | AM19: A | AN19: - | AO19: - | AP19: All or nothing Bid A
A20: 102.013 | B20: Reject | C20: 1.3 | D20: Aura Power Storage Solutions Ltd | E20: AURAF-1 | F20: DNO Connection | G20: Battery | H20: 2020-04-01 | I20: 2020-09-30 | J20: 01.04.20 - 30.09.20 (6 months) | K20: As per FFR framework agreement | L20: 700 | M20: 2300 | N20: 16 | O20: 700 | P20: 2300 | Q20: 16 | R20: 700 | S20: 2300 | T20: 16 | U20: 190 | V20: 0 | W20: 0 | X20: 0 | Y20: - | Z20: - | AA20: - | AB20: - | AC20: - | AD20: 8 | AE20: 20 | AF20: =20 -> 20 | AG20: 8 | AH20: 20 | AI20: 8 | AJ20: =20 -> 20 | AK20: No | AL20: - | AM20: A | AN20: - | AO20: - | AP20: All or nothing Bid A
A21: 102.014 | B21: Reject | C21: 1.3 | D21: BESS HoldCo 3 Ltd | E21: DBESS-33 | F21: DNO connection | G21: Battery | H21: 2018-09-30 | I21: 2019-03-31 | J21: 30.09.18 - 31.03.19 (6 months) | K21: As per FFR framework agreement | L21: 2300 | M21: 700 | N21: 8 | O21: 2300 | P21: 700 | Q21: 8 | R21: 2300 | S21: 700 | T21: =IF(R21>S21, (2400-R21+S21)/100, IF(R21=S21, 24, (S21-R21)/100)) -> 8 | U21: =10.94*MAX(AD21:AJ21) -> 317.26 | AD21: 14 | AE21: 29 | AF21: 29 | AG21: 14 | AH21: 29 | AI21: 14 | AJ21: 29 | AM21: A | AP21: A or B, all or nothing
A22: 102.015 | B22: Reject | C22: 1.3 | D22: BESS HoldCo 3 Ltd | E22: DBESS-33 | F22: DNO connection | G22: Battery | H22: 2019-03-31 | I22: 2019-09-30 | J22: 31.03.19 - 30.09.19 (6 months) | K22: As per FFR framework agreement | L22: 2300 | M22: 2300 | N22: 24 | O22: 2300 | P22: 2300 | Q22: 24 | R22: 2300 | S22: 2300 | T22: =IF(R22>S22, (2400-R22+S22)/100, IF(R22=S22, 24, (S22-R22)/100)) -> 24 | U22: =10.23*MAX(AD22:AJ22) -> 296.67 | AD22: 14 | AE22: 29 | AF22: 29 | AG22: 14 | AH22: 29 | AI22: 14 | AJ22: 29 | AM22: A | AP22: A or B, all or nothing
A23: 102.016 | B23: Reject | C23: 1.3 | D23: BESS HoldCo 3 Ltd | E23: DBESS-33 | F23: DNO connection | G23: Battery | H23: 2019-09-30 | I23: 2020-03-31 | J23: 30.09.19 - 31.03.20 (6 months) | K23: As per FFR framework agreement | L23: 2300 | M23: 2300 | N23: =IF(L23>M23, (2400-L23+M23)/100, IF(L23=M23, 24, (M23-L23)/100)) -> 24 | O23: 2300 | P23: 2300 | Q23: =IF(O23>P23, (2400-O23+P23)/100, IF(O23=P23, 24, (P23-O23)/100)) -> 24 | R23: 2300 | S23: 2300 | T23: 24 | U23: =10.23*MAX(AD23:AJ23) -> 296.67 | AD23: 14 | AE23: 29 | AF23: 29 | AG23: 14 | AH23: 29 | AI23: 14 | AJ23: 29 | AM23: A | AP23: A or B, all or nothing
A24: 102.017 | B24: Reject | C24: 1.3 | D24: BESS HoldCo 3 Ltd | E24: DBESS-33 | F24: DNO connection | G24: Battery | H24: 2020-03-31 | I24: 2020-09-30 | J24: 31.03.20 - 30.09.20 (6 months) | K24: As per FFR framework agreement | L24: 2300 | M24: 2300 | N24: 24 | O24: 2300 | P24: 2300 | Q24: 24 | R24: 2300 | S24: 2300 | T24: 24 | U24: =10.23*MAX(AD24:AJ24) -> 296.67 | AD24: 14 | AE24: 29 | AF24: 29 | AG24: 14 | AH24: 29 | AI24: 14 | AJ24: 29 | AM24: A | AP24: A or B, all or nothing
A25: 102.018 | B25: Reject | C25: 1.3 | D25: BESS HoldCo 3 Ltd | E25: DBESS-33 | F25: DNO connection | G25: Battery | H25: 2018-09-30 | I25: 2019-03-31 | J25: 30.09.18 - 31.03.19 (6 months) | K25: As per FFR framework agreement | L25: 2300 | M25: 700 | N25: 8 | O25: 2300 | P25: 700 | Q25: 8 | R25: 2300 | S25: 700 | T25: 8 | U25: =12.59*MAX(AD25:AJ25) -> 365.11 | AD25: 14 | AE25: 29 | AF25: 29 | AG25: 14 | AH25: 29 | AI25: 14 | AJ25: 29 | AM25: B | AP25: A or B, all or nothing
A26: 102.019 | B26: Reject | C26: 1.3 | D26: BESS HoldCo 3 Ltd | E26: DBESS-33 | F26: DNO connection | G26: Battery | H26: 2019-03-31 | I26: 2019-09-30 | J26: 31.03.19 - 30.09.19 (6 months) | K26: As per FFR framework agreement | L26: 2300 | M26: 700 | N26: 8 | O26: 2300 | P26: 700 | Q26: 8 | R26: 2300 | S26: 700 | T26: 8 | U26: =12.59*MAX(AD26:AJ26) -> 365.11 | AD26: 14 | AE26: 29 | AF26: 29 | AG26: 14 | AH26: 29 | AI26: 14 | AJ26: 29 | AM26: B | AP26: A or B, all or nothing
A27: 102.02 | B27: Reject | C27: 1.3 | D27: BESS HoldCo 3 Ltd | E27: DBESS-33 | F27: DNO connection | G27: Battery | H27: 2019-09-30 | I27: 2020-03-31 | J27: 30.09.19 - 31.03.20 (6 months) | K27: As per FFR framework agreement | L27: 2300 | M27: 700 | N27: 8 | O27: 2300 | P27: 700 | Q27: 8 | R27: 2300 | S27: 700 | T27: 8 | U27: =12.59*MAX(AD27:AJ27) -> 365.11 | AD27: 14 | AE27: 29 | AF27: 29 | AG27: 14 | AH27: 29 | AI27: 14 | AJ27: 29 | AM27: B | AP27: A or B, all or nothing
A28: 102.021 | B28: Reject | C28: 1.3 | D28: BESS HoldCo 3 Ltd | E28: DBESS-33 | F28: DNO connection | G28: Battery | H28: 2020-03-31 | I28: 2020-09-30 | J28: 31.03.20 - 30.09.20 (6 months) | K28: As per FFR framework agreement | L28: 2300 | M28: 700 | N28: 8 | O28: 2300 | P28: 700 | Q28: 8 | R28: 2300 | S28: 700 | T28: 8 | U28: =12.59*MAX(AD28:AJ28) -> 365.11 | AD28: 14 | AE28: 29 | AF28: 29 | AG28: 14 | AH28: 29 | AI28: 14 | AJ28: 29 | AM28: B | AP28: A or B, all or nothing
A29: 102.022 | B29: Reject | C29: 1.3 | D29: BESS HoldCo 2 Ltd | E29: DBESS-22 | F29: DNO connection | G29: Battery | H29: 2018-09-30 | I29: 2019-03-31 | J29: 30.09.18 - 31.03.19 (6 months) | K29: As per FFR framework agreement | L29: 2300 | M29: 700 | N29: =IF(L29>M29, (2400-L29+M29)/100, IF(L29=M29, 24, (M29-L29)/100)) -> 8 | O29: 2300 | P29: 700 | Q29: =IF(O29>P29, (2400-O29+P29)/100, IF(O29=P29, 24, (P29-O29)/100)) -> 8 | R29: 2300 | S29: 700 | T29: =IF(R29>S29, (2400-R29+S29)/100, IF(R29=S29, 24, (S29-R29)/100)) -> 8 | U29: =10.08*MAX(AD29:AJ29) -> 100.8 | AD29: 5 | AE29: 10 | AF29: 10 | AG29: 5 | AH29: 10 | AI29: 5 | AJ29: 10 | AM29: A | AP29: A or B, all or nothing
A30: 102.023 | B30: Reject | C30: 1.3 | D30: BESS HoldCo 2 Ltd | E30: DBESS-22 | F30: DNO connection | G30: Battery | H30: 2019-03-31 | I30: 2019-09-30 | J30: 31.03.19 - 30.09.19 (6 months) | K30: As per FFR framework agreement | L30: 2300 | M30: 2300 | N30: =IF(L30>M30, (2400-L30+M30)/100, IF(L30=M30, 24, (M30-L30)/100)) -> 24 | O30: 2300 | P30: 2300 | Q30: =IF(O30>P30, (2400-O30+P30)/100, IF(O30=P30, 24, (P30-O30)/100)) -> 24 | R30: 2300 | S30: 2300 | T30: =IF(R30>S30, (2400-R30+S30)/100, IF(R30=S30, 24, (S30-R30)/100)) -> 24 | U30: =10.68*MAX(AD30:AJ30) -> 106.8 | AD30: 5 | AE30: 10 | AF30: 10 | AG30: 5 | AH30: 10 | AI30: 5 | AJ30: 10 | AM30: A | AP30: A or B, all or nothing
A31: 102.024 | B31: Reject | C31: 1.3 | D31: BESS HoldCo 2 Ltd | E31: DBESS-22 | F31: DNO connection | G31: Battery | H31: 2019-09-30 | I31: 2020-03-31 | J31: 30.09.19 - 31.03.20 (6 months) | K31: As per FFR framework agreement | L31: 2300 | M31: 2300 | N31: =IF(L31>M31, (2400-L31+M31)/100, IF(L31=M31, 24, (M31-L31)/100)) -> 24 | O31: 2300 | P31: 2300 | Q31: =IF(O31>P31, (2400-O31+P31)/100, IF(O31=P31, 24, (P31-O31)/100)) -> 24 | R31: 2300 | S31: 2300 | T31: 24 | U31: =10.68*MAX(AD31:AJ31) -> 106.8 | AD31: 5 | AE31: 10 | AF31: 10 | AG31: 5 | AH31: 10 | AI31: 5 | AJ31: 10 | AM31: A | AP31: A or B, all or nothing
A32: 102.025 | B32: Reject | C32: 1.3 | D32: BESS HoldCo 2 Ltd | E32: DBESS-22 | F32: DNO connection | G32: Battery | H32: 2020-03-31 | I32: 2020-09-30 | J32: 31.03.20 - 30.09.20 (6 months) | K32: As per FFR framework agreement | L32: 2300 | M32: 2300 | N32: 24 | O32: 2300 | P32: 2300 | Q32: 24 | R32: 2300 | S32: 2300 | T32: 24 | U32: =10.68*MAX(AD32:AJ32) -> 106.8 | AD32: 5 | AE32: 10 | AF32: 10 | AG32: 5 | AH32: 10 | AI32: 5 | AJ32: 10 | AM32: A | AP32: A or B, all or nothing
A33: 102.026 | B33: Reject | C33: 1.3 | D33: BESS HoldCo 2 Ltd | E33: DBESS-22 | F33: DNO connection | G33: Battery | H33: 2018-09-30 | I33: 2019-03-31 | J33: 30.09.18 - 31.03.19 (6 months) | K33: As per FFR framework agreement | L33: 2300 | M33: 700 | N33: 8 | O33: 2300 | P33: 700 | Q33: 8 | R33: 2300 | S33: 700 | T33: 8 | U33: =11.59*MAX(AD33:AJ33) -> 115.9 | AD33: 5 | AE33: 10 | AF33: 10 | AG33: 5 | AH33: 10 | AI33: 5 | AJ33: 10 | AM33: B | AP33: A or B, all or nothing
A34: 102.027 | B34: Reject | C34: 1.3 | D34: BESS HoldCo 2 Ltd | E34: DBESS-22 | F34: DNO connection | G34: Battery | H34: 2019-03-31 | I34: 2019-09-30 | J34: 31.03.19 - 30.09.19 (6 months) | K34: As per FFR framework agreement | L34: 2300 | M34: 700 | N34: 8 | O34: 2300 | P34: 700 | Q34: 8 | R34: 2300 | S34: 700 | T34: 8 | U34: =11.59*MAX(AD34:AJ34) -> 115.9 | AD34: 5 | AE34: 10 | AF34: 10 | AG34: 5 | AH34: 10 | AI34: 5 | AJ34: 10 | AM34: B | AP34: A or B, all or nothing
A35: 102.028 | B35: Reject | C35: 1.3 | D35: BESS HoldCo 2 Ltd | E35: DBESS-22 | F35: DNO connection | G35: Battery | H35: 2019-09-30 | I35: 2020-03-31 | J35: 30.09.19 - 31.03.20 (6 months) | K35: As per FFR framework agreement | L35: 2300 | M35: 700 | N35: 8 | O35: 2300 | P35: 700 | Q35: 8 | R35: 2300 | S35: 700 | T35: 8 | U35: =11.59*MAX(AD35:AJ35) -> 115.9 | AD35: 5 | AE35: 10 | AF35: 10 | AG35: 5 | AH35: 10 | AI35: 5 | AJ35: 10 | AM35: B | AP35: A or B, all or nothing
A36: 102.029 | B36: Reject | C36: 1.3 | D36: BESS HoldCo 2 Ltd | E36: DBESS-22 | F36: DNO connection | G36: Battery | H36: 2020-03-31 | I36: 2020-09-30 | J36: 31.03.20 - 30.09.20 (6 months) | K36: As per FFR framework agreement | L36: 2300 | M36: 700 | N36: 8 | O36: 2300 | P36: 700 | Q36: 8 | R36: 2300 | S36: 700 | T36: 8 | U36: =11.59*MAX(AD36:AJ36) -> 115.9 | AD36: 5 | AE36: 10 | AF36: 10 | AG36: 5 | AH36: 10 | AI36: 5 | AJ36: 10 | AM36: B | AP36: A or B, all or nothing
A37: 102.03 | B37: Reject | C37: 1.3 | D37: Bolshan Renewables Limited | E37: BRLR-1 | F37: DNO connection | G37: Battery | H37: 2019-09-30 | I37: 2020-09-30 | J37: 30.09.19 - 30.09.20 (12 months) | K37: As per FFR framework agreement | L37: 2300 | M37: 2300 | N37: =IF(L37>M37, (2400-L37+M37)/100, IF(L37=M37, 24, (M37-L37)/100)) -> 24 | O37: 2300 | P37: 2300 | Q37: =IF(O37>P37, (2400-O37+P37)/100, IF(O37=P37, 24, (P37-O37)/100)) -> 24 | R37: 2300 | S37: 2300 | T37: =IF(R37>S37, (2400-R37+S37)/100, IF(R37=S37, 24, (S37-R37)/100)) -> 24 | U37: 203 | AD37: 5.6 | AE37: 14 | AF37: 14 | AG37: 5.6 | AH37: 14 | AI37: 5.6 | AJ37: 14
A38: 102.031 | B38: Reject | C38: 1.3 | D38: Centrica Brigg Ltd | E38: ROOSB-1 | F38: DNO connection | G38: Battery | H38: 2019-03-31 | I38: 2020-09-30 | J38: 31.03.19 - 30.09.20 (18 months) | K38: As per FFR framework agreement | L38: 2300 | M38: 2300 | N38: 24 | O38: 2300 | P38: 2300 | Q38: 24 | R38: 2300 | S38: 2300 | T38: 24 | U38: 527 | V38: 0 | W38: 0 | X38: n/a | Y38: Yes | Z38: n/a | AA38: n/a | AB38: n/a | AC38: n/a | AD38: 17.6 | AE38: 44 | AF38: 44 | AG38: 17.6 | AH38: 44 | AI38: 17.6 | AJ38: 44 | AK38: n/a | AL38: n/a | AP38: mutually exclusive of 102.032, 102.033, 102.034
A39: 102.032 | B39: Reject | C39: 1.3 | D39: Centrica Brigg Ltd | E39: ROOSB-1 | F39: DNO connection | G39: Battery | H39: 2019-03-31 | I39: 2019-09-30 | J39: 31.03.19 - 30.09.19 (6 months) | K39: As per FFR framework agreement | L39: 2300 | M39: 2300 | N39: 24 | O39: 2300 | P39: 2300 | Q39: 24 | R39: 2300 | S39: 2300 | T39: 24 | U39: 550 | V39: 0 | W39: 0 | X39: n/a | Y39: Yes | Z39: n/a | AA39: n/a | AB39: n/a | AC39: n/a | AD39: 17.6 | AE39: 44 | AF39: 44 | AG39: 17.6 | AH39: 44 | AI39: 17.6 | AJ39: 44 | AK39: n/a | AL39: n/a | AP39: This bid is, mutually exclusive of 102.031
A40: 102.033 | B40: Reject | C40: 1.3 | D40: Centrica Brigg Ltd | E40: ROOSB-1 | F40: DNO connection | G40: Battery | H40: 2019-09-30 | I40: 2020-03-31 | J40: 30.09.19 - 31.03.20 (6 months) | K40: As per FFR framework agreement | L40: 2300 | M40: 2300 | N40: 24 | O40: 2300 | P40: 2300 | Q40: 24 | R40: 2300 | S40: 2300 | T40: 24 | U40: 659 | V40: 0 | W40: 0 | X40: n/a | Y40: Yes | Z40: n/a | AA40: n/a | AB40: n/a | AC40: n/a | AD40: 17.6 | AE40: 44 | AF40: 44 | AG40: 17.6 | AH40: 44 | AI40: 17.6 | AJ40: 44 | AK40: n/a | AL40: n/a | AP40: This bid is, mutually exclusive of 102.032
A41: 102.034 | B41: Reject | C41: 1.3 | D41: Centrica Brigg Ltd | E41: ROOSB-1 | F41: DNO connection | G41: Battery | H41: 2020-03-31 | I41: 2020-09-30 | J41: 31.03.20 - 30.09.20 (6 months) | K41: As per FFR framework agreement | L41: 2300 | M41: 2300 | N41: 24 | O41: 2300 | P41: 2300 | Q41: 24 | R41: 2300 | S41: 2300 | T41: 24 | U41: 659 | V41: 0 | W41: 0 | X41: n/a | Y41: Yes | Z41: n/a | AA41: n/a | AB41: n/a | AC41: n/a | AD41: 17.6 | AE41: 44 | AF41: 44 | AG41: 17.6 | AH41: 44 | AI41: 17.6 | AJ41: 44 | AK41: n/a | AL41: n/a | AP41: This bid is, mutually exclusive of 102.033
A42: 102.035 | B42: Reject | C42: 1.3 | D42: GridBeyond | E42: GBND-1 | F42: DNO connection | G42: DSF: Load Response | H42: 2019-04-01 | I42: 2019-09-30 | J42: 01.04.19 - 30.09.19 (6 months) | K42: As per FFR framework agreement | L42: 2300 | M42: 2300 | N42: 24 | O42: 2300 | P42: 2300 | Q42: 24 | R42: 2300 | S42: 2300 | T42: 24 | U42: 686.25 | AD42: 20 | AE42: 50 | AF42: 50 | AG42: 20 | AH42: 50 | AI42: 10 | AJ42: 25
A43: 102.036 | B43: Reject | C43: 1.3 | D43: GridBeyond | E43: GBND-1 | F43: DNO connection | G43: DSF: Load Response | H43: 2019-10-01 | I43: 2020-03-31 | J43: 01.10.19 - 31.03.20 (6 months) | K43: As per FFR framework agreement | L43: 2300 | M43: 1500 | N43: 16 | O43: 2300 | P43: 1500 | Q43: 16 | R43: 2300 | S43: 1500 | T43: 16 | U43: 748.5 | AD43: 24 | AE43: 60 | AF43: 60 | AG43: 24 | AH43: 60 | AI43: 12 | AJ43: 30 | AM43: All-or-Nothing: linked to 102.003
A44: 102.037 | B44: Reject | C44: 1.3 | D44: GridBeyond | E44: GBND-1 | F44: DNO connection | G44: DSF: Load Response | H44: 2019-10-01 | I44: 2020-03-31 | J44: 01.10.19 - 31.03.20 (6 months) | K44: As per FFR framework agreement | L44: 1900 | M44: 2300 | N44: 4 | O44: 1900 | P44: 2300 | Q44: 4 | R44: 1900 | S44: 2300 | T44: 4 | U44: 748.5 | AD44: 24 | AE44: 60 | AF44: 60 | AG44: 24 | AH44: 60 | AI44: 12 | AJ44: 30 | AM44: All-or-Nothing: linked to 102.002
A45: 102.038 | B45: Accepted | C45: N/A | D45: Energy Pool | E45: EPFFR-1 | F45: DNO connection | G45: Battery | H45: 2018-09-30 | I45: 2019-03-31 | J45: 30.09.18 - 31.03.19 (6 months) | K45: As per FFR framework agreement | L45: 2300 | M45: 700 | N45: 8 | O45: 2300 | P45: 700 | Q45: 8 | R45: 2300 | S45: 700 | T45: 8 | U45: 4.6 | V45: 0 | W45: - | X45: - | Y45: - | Z45: - | AA45: - | AB45: - | AC45: - | AD45: 0.4 | AE45: 1 | AF45: 1 | AG45: 0.4 | AH45: 1 | AI45: - | AJ45: - | AK45: - | AL45: - | AM45: A | AN45: - | AO45: - | AP45: Mutually exclusive of B and C
A46: 102.039 | B46: Reject | C46: 1.3 | D46: Energy Pool | E46: EPFFR-1 | F46: DNO connection | G46: Battery | H46: 2018-09-30 | I46: 2019-03-31 | J46: 30.09.18 - 31.03.19 (6 months) | K46: As per FFR framework agreement | L46: 2300 | M46: 700 | N46: 8 | O46: 2300 | P46: 700 | Q46: 8 | R46: 2300 | S46: 700 | T46: =IF(R46>S46, (2400-R46+S46)/100, IF(R46=S46, 24, (S46-R46)/100)) -> 8 | U46: 4.6 | V46: 0 | W46: - | X46: - | Y46: - | Z46: - | AA46: - | AB46: - | AC46: - | AD46: 0.4 | AE46: 1 | AF46: 1 | AG46: 0.4 | AH46: 1 | AI46: - | AJ46: - | AK46: - | AL46: - | AM46: B | AN46: - | AO46: - | AP46: EPFFR-1 "B" is an all or nothing bid, which is Mutually exclusive of A and C.
A47: 102.04 | B47: Reject | C47: 1.3 | D47: Energy Pool | E47: EPFFR-1 | F47: DNO connection | G47: Battery | H47: 2019-03-31 | I47: 2019-09-30 | J47: 31.03.19 - 30.09.19 (6 months) | K47: As per FFR framework agreement | L47: 2300 | M47: 2300 | N47: 24 | O47: 2300 | P47: 2300 | Q47: 24 | R47: 2300 | S47: 2300 | T47: 24 | U47: 7 | V47: 0 | W47: - | X47: - | Y47: - | Z47: - | AA47: - | AB47: - | AC47: - | AD47: 0.4 | AE47: 1 | AF47: 1 | AG47: 0.4 | AH47: 1 | AI47: - | AJ47: - | AK47: - | AL47: - | AM47: B | AN47: - | AO47: - | AP47: EPFFR-1 "B" is an all or nothing bid, which is Mutually exclusive of A and C.
A48: 102.041 | B48: Reject | C48: 1.3 | D48: Energy Pool | E48: EPFFR-1 | F48: DNO connection | G48: Battery | H48: 2019-09-30 | I48: 2020-03-31 | J48: 30.09.19 - 31.03.20 (6 months) | K48: As per FFR framework agreement | L48: 2300 | M48: 1500 | N48: 16 | O48: 2300 | P48: 2300 | Q48: 24 | R48: 2300 | S48: 2300 | T48: 24 | U48: 6.8 | V48: 0 | W48: - | X48: - | Y48: - | Z48: - | AA48: - | AB48: - | AC48: - | AD48: 0.4 | AE48: 1 | AF48: 1 | AG48: 0.4 | AH48: 1 | AI48: - | AJ48: - | AK48: - | AL48: - | AM48: B | AN48: - | AO48: - | AP48: EPFFR-1 "B" is an all or nothing bid, which is Mutually exclusive of A and C.
A49: 102.042 | B49: Reject | C49: 1.3 | D49: Energy Pool | E49: EPFFR-1 | F49: DNO connection | G49: Battery | H49: 2019-03-31 | I49: 2019-09-30 | J49: 31.03.19 - 30.09.19 (6 months) | K49: As per FFR framework agreement | L49: 2300 | M49: 2300 | N49: 24 | O49: 2300 | P49: 2300 | Q49: 24 | R49: 2300 | S49: 2300 | T49: 24 | U49: 7 | V49: 0 | W49: - | X49: - | Y49: - | Z49: - | AA49: - | AB49: - | AC49: - | AD49: 0.4 | AE49: 1 | AF49: 1 | AG49: 0.4 | AH49: 1 | AI49: - | AJ49: - | AK49: - | AL49: - | AM49: C | AN49: - | AO49: - | AP49: EPFFR-1 "B" is an all or nothing bid, which is Mutually exclusive of A and C.
A50: 102.043 | B50: Reject | C50: 1.3 | D50: Energy Pool | E50: EPFFR-1 | F50: DNO connection | G50: Battery | H50: 2019-09-30 | I50: 2020-03-31 | J50: 30.09.19 - 31.03.20 (6 months) | K50: As per FFR framework agreement | L50: 2300 | M50: 1500 | N50: 16 | O50: 2300 | P50: 2300 | Q50: 24 | R50: 2300 | S50: 2300 | T50: 24 | U50: 6.8 | V50: 0 | W50: - | X50: - | Y50: - | Z50: - | AA50: - | AB50: - | AC50: - | AD50: 0.4 | AE50: 1 | AF50: 1 | AG50: 0.4 | AH50: 1 | AI50: - | AJ50: - | AK50: - | AL50: - | AM50: C | AN50: - | AO50: - | AP50: EPFFR-1 "B" is an all or nothing bid, which is Mutually exclusive of A and C.
A51: 102.044 | B51: Reject | C51: 1.3 | D51: Energy Pool | E51: EPFFR-1 | F51: DNO connection | G51: Battery | H51: 2020-03-31 | I51: 2020-09-30 | J51: 31.03.20 - 30.09.20 (6 months) | K51: As per FFR framework agreement | L51: 2300 | M51: 2300 | N51: 24 | O51: 2300 | P51: 2300 | Q51: 24 | R51: 2300 | S51: 2300 | T51: 24 | U51: 8.3 | V51: 0 | W51: - | X51: - | Y51: - | Z51: - | AA51: - | AB51: - | AC51: - | AD51: 0.4 | AE51: 1 | AF51: 1 | AG51: 0.4 | AH51: 1 | AI51: - | AJ51: - | AK51: - | AL51: - | AM51: C | AN51: - | AO51: - | AP51: EPFFR-1 "B" is an all or nothing bid, which is Mutually exclusive of A and C.
A52: 102.045 | B52: Reject | C52: 1.3 | D52: ENERGY STORE 1 LTD | E52: SLAM-1 | F52: DNO connection | G52: Battery | H52: 2019-03-31 | I52: 2019-09-30 | J52: 31.03.19 - 30.09.19 (6 months) | K52: As per FFR framework agreement | L52: 2300 | M52: 700 | N52: 8 | O52: 2300 | P52: 700 | Q52: 8 | R52: 2300 | S52: 700 | T52: =IF(R52>S52, (2400-R52+S52)/100, IF(R52=S52, 24, (S52-R52)/100)) -> 8 | U52: 53.95 | AD52: 2 | AE52: 5 | AF52: 5 | AG52: 2 | AH52: 5
A53: 102.046 | B53: Reject | C53: 1.3 | D53: ENERGY STORE 1 LTD | E53: SLAM-1 | F53: DNO connection | G53: Battery | H53: 2019-09-30 | I53: 2020-09-30 | J53: 30.09.19 - 30.09.20 (12 months) | K53: As per FFR framework agreement | L53: 2300 | M53: 2300 | N53: 24 | O53: 2300 | P53: 2300 | Q53: 24 | R53: 2300 | S53: 2300 | T53: 24 | U53: 53.95 | AD53: 2 | AE53: 5 | AF53: 5 | AG53: 2 | AH53: 5 | AI53: 2 | AJ53: 5
A54: 102.047 | B54: Reject | C54: 1.3 | D54: ENERGY STORE 6 LTD | E54: YORK-1 | F54: DNO connection | G54: Battery | H54: 2019-09-30 | I54: 2020-09-30 | J54: 30.09.19 - 30.09.20 (12 months) | K54: As per FFR framework agreement | L54: 2300 | M54: 2300 | N54: 24 | O54: 2300 | P54: 2300 | Q54: 24 | R54: 2300 | S54: 2300 | T54: 24 | U54: 107.7 | AD54: 4 | AE54: 10 | AF54: 10 | AG54: 4 | AH54: 10 | AI54: 4 | AJ54: 10 | AM54: C | AP54: Only one of C,D please
A55: 102.048 | B55: Reject | C55: 1.3 | D55: ENERGY STORE 6 LTD | E55: YORK-1 | F55: DNO connection | G55: Battery | H55: 2019-09-30 | I55: 2020-09-30 | J55: 30.09.19 - 30.09.20 (12 months) | K55: As per FFR framework agreement | L55: 2300 | M55: 700 | N55: 8 | O55: 2300 | P55: 700 | Q55: 8 | R55: 2300 | S55: 700 | T55: 8 | U55: 107.7 | AD55: 4 | AE55: 10 | AF55: 10 | AG55: 4 | AH55: 10 | AM55: D | AP55: Only one of C,D please
A56: 102.049 | B56: Reject | C56: 1.3 | D56: ENERGY STORE 4 LTD | E56: HULL-1 | F56: DNO connection | G56: Battery | H56: 2019-09-30 | I56: 2020-09-30 | J56: 30.09.19 - 30.09.20 (12 months) | K56: As per FFR framework agreement | L56: 2300 | M56: 2300 | N56: 24 | O56: 2300 | P56: 2300 | Q56: 24 | R56: 2300 | S56: 2300 | T56: 24 | U56: 64.62 | AD56: 2.4 | AE56: 6 | AF56: 6 | AG56: 2.4 | AH56: 6 | AI56: 2.4 | AJ56: 6 | AM56: E | AP56: Only one of E,F please
A57: 102.05 | B57: Reject | C57: 1.3 | D57: ENERGY STORE 4 LTD | E57: HULL-1 | F57: DNO connection | G57: Battery | H57: 2019-09-30 | I57: 2020-09-30 | J57: 30.09.19 - 30.09.20 (12 months) | K57: As per FFR framework agreement | L57: 2300 | M57: 700 | N57: 8 | O57: 2300 | P57: 700 | Q57: 8 | R57: 2300 | S57: 700 | T57: 8 | U57: 64.62 | AD57: 2.4 | AE57: 6 | AF57: 6 | AG57: 2.4 | AH57: 6 | AM57: F | AP57: Only one of E,F please
A58: 102.051 | B58: Reject | C58: 1.2 | D58: First Hydro Company | E58: Dino-1 | F58: TO connection | G58: Hydro | H58: 2018-07-01 | I58: 2018-09-30 | J58: 01.07.18 - 30.09.18 (3 months) | K58: As per FFR framework agreement | L58: 700 | M58: 2300 | N58: 16 | O58: 700 | P58: 2300 | Q58: 16 | R58: 700 | S58: 2300 | T58: 16 | U58: 1250 | V58: 1250 | W58: 0 | X58: - | Y58: No | Z58: 150 | AA58: 150 | AB58: 288 | AC58: 150 | AD58: 68 | AE58: 170 | AF58: 170 | AG58: 107 | AH58: 170 | AI58: 0 | AJ58: 0
A59: 102.052 | B59: Reject | C59: 1.2 | D59: First Hydro Company | E59: Dino-1 | F59: TO connection | G59: Hydro | H59: 2018-07-01 | I59: 2018-09-30 | J59: 01.07.18 - 30.09.18 (3 months) | K59: As per FFR framework agreement | L59: 700 | M59: 1500 | N59: 8 | O59: 700 | P59: 1500 | Q59: 8 | R59: 700 | S59: 1500 | T59: 8 | U59: 1300 | V59: 1300 | W59: 0 | X59: - | Y59: No | Z59: 150 | AA59: 150 | AB59: 288 | AC59: 150 | AD59: 68 | AE59: 170 | AF59: 170 | AG59: 107 | AH59: 170 | AI59: 0 | AJ59: 0
A60: 102.053 | B60: Reject | C60: 1.2 | D60: First Hydro Company | E60: Dino-4 | F60: TO connection | G60: Hydro | H60: 2018-10-01 | I60: 2019-03-31 | J60: 01.10.18 - 31.03.19 (6 months) | K60: As per FFR framework agreement | L60: 700 | M60: 2300 | N60: 16 | O60: 700 | P60: 2300 | Q60: 16 | R60: 700 | S60: 2300 | T60: 16 | U60: 1400 | V60: 1400 | W60: 0 | X60: - | Y60: No | Z60: 150 | AA60: 150 | AB60: 288 | AC60: 150 | AD60: 68 | AE60: 170 | AF60: 170 | AG60: 107 | AH60: 170 | AI60: 0 | AJ60: 0
A61: 102.054 | B61: Reject | C61: 1.2 | D61: First Hydro Company | E61: Dino-5 | F61: TO connection | G61: Hydro | H61: 2019-04-01 | I61: 2020-09-30 | J61: 01.04.19 - 30.09.20 (18 months) | K61: As per FFR framework agreement | L61: 700 | M61: 2300 | N61: 16 | O61: 700 | P61: 2300 | Q61: 16 | R61: 700 | S61: 2300 | T61: 16 | U61: 1140 | V61: 1140 | W61: 0 | X61: - | Y61: No | Z61: 150 | AA61: 150 | AB61: 288 | AC61: 150 | AD61: 68 | AE61: 170 | AF61: 170 | AG61: 107 | AH61: 170 | AI61: 0 | AJ61: 0
A62: 102.055 | B62: Reject | C62: 1.2 | D62: Keystone Power Ltd | E62: PLYMD1 | F62: DNO connection | G62: Multiple Fuel Type | H62: 2018-10-01 | I62: 2020-09-30 | J62: 01.10.18 - 30.09.20 (24 months) | K62: As per FFR framework agreement | L62: 700 | M62: 2300 | N62: 16 | O62: 700 | P62: 2300 | Q62: 16 | R62: 700 | S62: 2300 | T62: 16 | U62: 24 | AD62: 0.8 | AE62: 2 | AF62: 2 | AG62: 0.8 | AH62: 2 | AI62: 0 | AJ62: 0
A63: 102.056 | B63: Reject | C63: 1.3 | D63: KiWi Power Ltd | E63: KIWID-1 | F63: DNO connection | G63: Battery | H63: 2018-09-30 | I63: 2019-03-31 | J63: 30.09.18 - 31.03.19 (6 months) | K63: As per FFR framework agreement | L63: 2300 | M63: 700 | N63: =IF(L63>M63, (2400-L63+M63)/100, IF(L63=M63, 24, (M63-L63)/100)) -> 8 | O63: 2300 | P63: 700 | Q63: =IF(O63>P63, (2400-O63+P63)/100, IF(O63=P63, 24, (P63-O63)/100)) -> 8 | R63: 2300 | S63: 700 | T63: =IF(R63>S63, (2400-R63+S63)/100, IF(R63=S63, 24, (S63-R63)/100)) -> 8 | U63: 13.7 | AD63: 0.8 | AE63: 2 | AF63: 2 | AG63: 0.8 | AH63: 2 | AM63: B | AP63: 102.004-102.007 are all or nothing bids
A64: 102.057 | B64: Reject | C64: 1.3 | D64: KiWi Power Ltd | E64: KIWID-1 | F64: DNO connection | G64: Battery | H64: 2018-09-30 | I64: 2019-03-31 | J64: 30.09.18 - 31.03.19 (6 months) | K64: As per FFR framework agreement | L64: 700 | M64: 1500 | N64: 8 | O64: 700 | P64: 1500 | Q64: 8 | R64: 700 | S64: 1500 | T64: 8 | U64: 4.96 | AI64: 0.8 | AJ64: 2 | AM64: B | AP64: 102.004-102.007 are all or nothing bids
A65: 102.058 | B65: Reject | C65: 1.3 | D65: KiWi Power Ltd | E65: KIWID-1 | F65: DNO connection | G65: Battery | H65: 2018-09-30 | I65: 2019-03-31 | J65: 30.09.18 - 31.03.19 (6 months) | K65: As per FFR framework agreement | L65: 1900 | M65: 2300 | N65: 4 | O65: 1900 | P65: 2300 | Q65: 4 | R65: 1900 | S65: 2300 | T65: 4 | U65: 4.96 | AI65: 0.8 | AJ65: 2 | AM65: B | AP65: 102.004-102.007 are all or nothing bids
A66: 102.059 | B66: Reject | C66: 1.3 | D66: KiWi Power Ltd | E66: KIWID-1 | F66: DNO connection | G66: Battery | H66: 2019-03-31 | I66: 2019-09-30 | J66: 31.03.19 - 30.09.19 (6 months) | K66: As per FFR framework agreement | L66: 2300 | M66: 2300 | N66: 24 | O66: 2300 | P66: 2300 | Q66: 24 | R66: 2300 | S66: 2300 | T66: 24 | U66: 23.46 | AD66: 0.8 | AE66: 2 | AF66: 2 | AG66: 0.8 | AH66: 2 | AI66: 0.8 | AJ66: 2 | AM66: B | AP66: 102.004-102.007 are all or nothing bids
A67: 102.06 | B67: Reject | C67: 1.3 | D67: KiWi Power Ltd | E67: KIWIDB-1 | F67: DNO connection | G67: Battery | H67: 2020-03-31 | I67: 2020-09-30 | J67: 31.03.20 - 30.09.20 (6 months) | K67: As per FFR framework agreement | L67: 2300 | M67: 2300 | N67: 24 | O67: 2300 | P67: 2300 | Q67: 24 | R67: 2300 | S67: 2300 | T67: 24 | U67: 59.96 | AD67: 1.6 | AE67: 4 | AF67: 4 | AG67: 1.6 | AH67: 4 | AI67: 1.6 | AJ67: 4
A68: 102.061 | B68: Reject | C68: 1.3 | D68: Limejump Ltd | E68: LJDYT-1 | F68: DNO connection | G68: Battery | H68: 2019-03-31 | I68: 2020-09-30 | J68: 31.03.19 - 30.09.20 (18 months) | K68: As per FFR framework agreement | L68: 2300 | M68: 700 | N68: 8 | O68: 2300 | P68: 700 | Q68: 8 | R68: 2300 | S68: 700 | T68: 8 | U68: 120 | V68: 0 | AD68: 4 | AE68: 10 | AF68: 10 | AG68: 4 | AH68: 10 | AI68: 4 | AJ68: 10 | AP68: H held for maximum 30mins, only one of 102.001, 102.002
A69: 102.062 | B69: Reject | C69: 1.3 | D69: Limejump Ltd | E69: LJDYT-1 | F69: DNO connection | G69: Battery | H69: 2019-04-01 | I69: 2020-09-30 | J69: 01.04.19 - 30.09.20 (18 months) | K69: As per FFR framework agreement | L69: 700 | M69: 2300 | N69: 16 | O69: 700 | P69: 2300 | Q69: 16 | R69: 700 | S69: 2300 | T69: =IF(R69>S69, (2400-R69+S69)/100, IF(R69=S69, 24, (S69-R69)/100)) -> 16 | U69: 135 | V69: 0 | AD69: 4 | AE69: 10 | AF69: 10 | AG69: 4 | AH69: 10 | AI69: 4 | AJ69: 10 | AP69: H held for maximum 30mins, only one of 102.001, 102.002
A70: 102.063 | B70: Reject | C70: 2 | D70: Limejump Virtual 8 Ltd | E70: LJDYV-2 | F70: DNO connection | G70: Battery | H70: 2019-03-31 | I70: 2019-09-30 | J70: 31.03.19 - 30.09.19 (6 months) | K70: As per FFR framework agreement | L70: 2300 | M70: 700 | N70: =IF(L70>M70, (2400-L70+M70)/100, IF(L70=M70, 24, (M70-L70)/100)) -> 8 | O70: 2300 | P70: 700 | Q70: =IF(O70>P70, (2400-O70+P70)/100, IF(O70=P70, 24, (P70-O70)/100)) -> 8 | R70: 2300 | S70: 700 | T70: 8 | U70: 90 | V70: 0 | AD70: 4 | AE70: 10 | AF70: 10 | AG70: 2 | AH70: 5 | AI70: 0 | AJ70: 0 | AP70: H held for maximum 30mins, only one of 102.003, A
A71: 102.064 | B71: Reject | C71: 1.3 | D71: Limejump Virtual 8 Ltd | E71: LJDYV-2 | F71: DNO connection | G71: Battery | H71: 2019-03-31 | I71: 2019-09-30 | J71: =TEXT(H71,"DD.MM.YY")&" - "&TEXT(I71,"DD.MM.YY")&" ("&DATEDIF(H71,I71+1,"m")&" months)" -> 31.03.19 - 30.09.19 (6 months) | K71: As per FFR framework agreement | L71: 2300 | M71: 700 | N71: 8 | O71: 2300 | P71: 700 | Q71: 8 | R71: 2300 | S71: 700 | T71: 8 | U71: 90 | V71: 0 | AD71: 4 | AE71: 10 | AF71: 10 | AG71: 2 | AH71: 5 | AI71: 2 | AJ71: 5 | AM71: A | AP71: H held for maximum 30mins, only one of 102.003, A
A72: 102.065 | B72: Reject | C72: 1.3 | D72: Limejump Virtual 8 Ltd | E72: LJDYV-2 | F72: DNO connection | G72: Battery | H72: 2019-04-01 | I72: 2019-09-30 | J72: 01.04.19 - 30.09.19 (6 months) | K72: As per FFR framework agreement | L72: 700 | M72: 2300 | N72: 16 | O72: 700 | P72: 2300 | Q72: 16 | R72: 700 | S72: 2300 | T72: 16 | U72: 99 | V72: 0 | AD72: 4 | AE72: 10 | AF72: 10 | AG72: 2.4 | AH72: 6 | AI72: 2.4 | AJ72: 6 | AM72: A | AP72: H held for maximum 30mins, only one of 102.003, A
A73: 102.066 | B73: Reject | C73: 1.3 | D73: Limejump Virtual 8 Ltd | E73: LJDYV-2 | F73: DNO connection | G73: Battery | H73: 2019-09-30 | I73: 2020-03-31 | J73: 30.09.19 - 31.03.20 (6 months) | K73: As per FFR framework agreement | L73: 2300 | M73: 700 | N73: 8 | O73: 2300 | P73: 700 | Q73: 8 | R73: 2300 | S73: 700 | T73: 8 | U73: 83 | V73: 0 | AD73: 4 | AE73: 10 | AF73: 10 | AG73: 2.4 | AH73: 6 | AI73: 0 | AJ73: 0 | AP73: H held for maximum 30mins, only one of 102.006, B
A74: 102.067 | B74: Reject | C74: 1.3 | D74: Limejump Virtual 8 Ltd | E74: LJDYV-2 | F74: DNO connection | G74: Battery | H74: 2019-09-30 | I74: 2020-03-31 | J74: 30.09.19 - 31.03.20 (6 months) | K74: As per FFR framework agreement | L74: 2300 | M74: 700 | N74: 8 | O74: 2300 | P74: 700 | Q74: 8 | R74: 2300 | S74: 700 | T74: 8 | U74: 83 | V74: 0 | AD74: 4 | AE74: 10 | AF74: 10 | AG74: 2.4 | AH74: 6 | AI74: 2.4 | AJ74: 6 | AM74: B | AP74: H held for maximum 30mins, only one of 102.006, B
A75: 102.068 | B75: Reject | C75: 1.3 | D75: Limejump Virtual 8 Ltd | E75: LJDYV-2 | F75: DNO connection | G75: Battery | H75: 2019-10-01 | I75: 2020-03-31 | J75: 01.10.19 - 31.03.20 (6 months) | K75: As per FFR framework agreement | L75: 700 | M75: 1500 | N75: 8 | O75: 700 | P75: 2300 | Q75: 16 | R75: 700 | S75: 2300 | T75: 16 | U75: 104 | V75: 0 | AD75: 4 | AE75: 10 | AF75: 10 | AG75: 4 | AH75: 10 | AI75: 4 | AJ75: 10 | AM75: B | AP75: H held for maximum 30mins, only one of 102.006, B
A76: 102.069 | B76: Reject | C76: 1.3 | D76: Limejump Virtual 8 Ltd | E76: LJDYV-2 | F76: DNO connection | G76: Battery | H76: 2019-10-01 | I76: 2020-03-31 | J76: 01.10.19 - 31.03.20 (6 months) | K76: As per FFR framework agreement | L76: 1500 | M76: 1900 | N76: 4 | Q76: 24 | T76: 24 | U76: 39 | V76: 0 | AD76: 1.2 | AE76: 3 | AF76: 3 | AG76: 1.2 | AH76: 3 | AI76: 1.2 | AJ76: 3 | AM76: B | AP76: H held for maximum 30mins, only one of 102.006, B
A77: 102.07 | B77: Reject | C77: 1.3 | D77: Limejump Virtual 8 Ltd | E77: LJDYV-2 | F77: DNO connection | G77: Battery | H77: 2019-10-01 | I77: 2020-03-31 | J77: 01.10.19 - 31.03.20 (6 months) | K77: As per FFR framework agreement | L77: 1900 | M77: 2300 | N77: 4 | Q77: 24 | T77: 24 | U77: 104 | V77: 0 | AD77: 4 | AE77: 10 | AF77: 10 | AG77: 4 | AH77: 10 | AI77: 4 | AJ77: 10 | AM77: B | AP77: H held for maximum 30mins, only one of 102.006, B
A78: 102.071 | B78: Reject | C78: 2 | D78: Limejump Virtual 8 Ltd | E78: LJDYV-2 | F78: DNO connection | G78: Battery | H78: 2020-03-31 | I78: 2020-09-30 | J78: 31.03.20 - 30.09.20 (6 months) | K78: As per FFR framework agreement | L78: 2300 | M78: 700 | N78: 8 | O78: 2300 | P78: 700 | Q78: 8 | R78: 2300 | S78: 700 | T78: 8 | U78: 95 | V78: 0 | AD78: 4 | AE78: 10 | AF78: 10 | AG78: 2.8 | AH78: 7 | AI78: 0 | AJ78: 0 | AP78: H held for maximum 30mins, only one of 102.011, C
A79: 102.072 | B79: Reject | C79: 1.3 | D79: Limejump Virtual 8 Ltd | E79: LJDYV-2 | F79: DNO connection | G79: Battery | H79: 2020-03-31 | I79: 2020-09-30 | J79: 31.03.20 - 30.09.20 (6 months) | K79: As per FFR framework agreement | L79: 2300 | M79: 700 | N79: 8 | O79: 2300 | P79: 700 | Q79: 8 | R79: 2300 | S79: 700 | T79: 8 | U79: 95 | V79: 0 | AD79: 4 | AE79: 10 | AF79: 10 | AG79: 2.8 | AH79: 7 | AI79: 2.8 | AJ79: 7 | AM79: C | AP79: H held for maximum 30mins, only one of 102.011, C
A80: 102.073 | B80: Reject | C80: 1.3 | D80: Limejump Virtual 8 Ltd | E80: LJDYV-2 | F80: DNO connection | G80: Battery | H80: 2020-04-01 | I80: 2020-09-30 | J80: 01.04.20 - 30.09.20 (6 months) | K80: As per FFR framework agreement | L80: 700 | M80: 2300 | N80: 16 | O80: 700 | P80: 2300 | Q80: 16 | R80: 700 | S80: 2300 | T80: 16 | U80: 109 | V80: 0 | AD80: 4 | AE80: 10 | AF80: 10 | AG80: 4 | AH80: 10 | AI80: 4 | AJ80: 10 | AM80: C | AP80: H held for maximum 30mins, only one of 102.011, C
A81: 102.074 | B81: Reject | C81: 2 | D81: Limejump Virtual 8 Ltd | E81: LJDYV-1 | F81: DNO connection | G81: Battery | H81: 2019-03-31 | I81: 2019-09-30 | J81: 31.03.19 - 30.09.19 (6 months) | K81: As per FFR framework agreement | L81: 2300 | M81: 700 | N81: 8 | O81: 2300 | P81: 700 | Q81: 8 | R81: 2300 | S81: 700 | T81: 8 | U81: 77 | V81: 0 | AD81: 3.2 | AE81: 8 | AF81: 8 | AG81: 1.6 | AH81: 4 | AI81: 0 | AJ81: 0 | AP81: H held for maximum 30mins, only one of 102.014, D
A82: =A81+0.001 -> 102.075 | B82: Reject | C82: 1.3 | D82: Limejump Virtual 8 Ltd | E82: LJDYV-1 | F82: DNO connection | G82: Battery | H82: 2019-03-31 | I82: 2019-09-30 | J82: 31.03.19 - 30.09.19 (6 months) | K82: As per FFR framework agreement | L82: 2300 | M82: 700 | N82: 8 | O82: 2300 | P82: 700 | Q82: 8 | R82: 2300 | S82: 700 | T82: 8 | U82: 77 | V82: 0 | AD82: 3.2 | AE82: 8 | AF82: 8 | AG82: 1.6 | AH82: 4 | AI82: 1.6 | AJ82: 4 | AM82: D | AP82: H held for maximum 30mins, only one of 102.014, D
A83: 102.076 | B83: Reject | C83: 1.3 | D83: Limejump Virtual 8 Ltd | E83: LJDYV-1 | F83: DNO connection | G83: Battery | H83: 2019-04-01 | I83: 2019-09-30 | J83: 01.04.19 - 30.09.19 (6 months) | K83: As per FFR framework agreement | L83: 700 | M83: 2300 | N83: 16 | O83: 700 | P83: 2300 | Q83: 16 | R83: 700 | S83: 2300 | T83: 16 | U83: 74 | V83: 0 | AD83: 3.2 | AE83: 8 | AF83: 8 | AG83: 2 | AH83: 5 | AI83: 2 | AJ83: 5 | AM83: D | AP83: H held for maximum 30mins, only one of 102.014, D
A84: 102.077 | B84: Reject | C84: 1.3 | D84: Limejump Virtual 8 Ltd | E84: LJDYV-1 | F84: DNO connection | G84: Battery | H84: 2019-09-30 | I84: 2020-03-31 | J84: 30.09.19 - 31.03.20 (6 months) | K84: As per FFR framework agreement | L84: 2300 | M84: 700 | N84: 8 | O84: 2300 | P84: 700 | Q84: 8 | R84: 2300 | S84: 700 | T84: 8 | U84: 62 | V84: 0 | AD84: 3.2 | AE84: 8 | AF84: 8 | AG84: 2 | AH84: 5 | AI84: 0 | AJ84: 0 | AP84: H held for maximum 30mins, only one of 102.017, E
A85: 102.078 | B85: Reject | C85: 1.3 | D85: Limejump Virtual 8 Ltd | E85: LJDYV-1 | F85: DNO connection | G85: Battery | H85: 2019-09-30 | I85: 2020-03-31 | J85: 30.09.19 - 31.03.20 (6 months) | K85: As per FFR framework agreement | L85: 2300 | M85: 700 | N85: 8 | O85: 2300 | P85: 700 | Q85: 8 | R85: 2300 | S85: 700 | T85: 8 | U85: 62 | V85: 0 | AD85: 3.2 | AE85: 8 | AF85: 8 | AG85: 2 | AH85: 5 | AI85: 2 | AJ85: 5 | AM85: E | AP85: H held for maximum 30mins, only one of 102.017, E
A86: 102.079 | B86: Reject | C86: 1.3 | D86: Limejump Virtual 8 Ltd | E86: LJDYV-1 | F86: DNO connection | G86: Battery | H86: 2019-10-01 | I86: 2020-03-31 | J86: 01.10.19 - 31.03.20 (6 months) | K86: As per FFR framework agreement | L86: 700 | M86: 1500 | N86: 8 | O86: 700 | P86: 2300 | Q86: 16 | R86: 700 | S86: 2300 | T86: 16 | U86: 83 | V86: 0 | AD86: 3.2 | AE86: 8 | AF86: 8 | AG86: 3.2 | AH86: 8 | AI86: 3.2 | AJ86: 8 | AM86: E | AP86: H held for maximum 30mins, only one of 102.017, E
A87: 102.08 | B87: Reject | C87: 1.3 | D87: Limejump Virtual 8 Ltd | E87: LJDYV-1 | F87: DNO connection | G87: Battery | H87: 2019-10-01 | I87: 2020-03-31 | J87: 01.10.19 - 31.03.20 (6 months) | K87: As per FFR framework agreement | L87: 1500 | M87: 1900 | N87: 4 | Q87: 24 | T87: 24 | U87: 39 | V87: 0 | AD87: 1.2 | AE87: 3 | AF87: 3 | AG87: 1.2 | AH87: 3 | AI87: 1.2 | AJ87: 3 | AM87: E | AP87: H held for maximum 30mins, only one of 102.017, E
A88: 102.081 | B88: Reject | C88: 1.3 | D88: Limejump Virtual 8 Ltd | E88: LJDYV-1 | F88: DNO connection | G88: Battery | H88: 2019-10-01 | I88: 2020-03-31 | J88: 01.10.19 - 31.03.20 (6 months) | K88: As per FFR framework agreement | L88: 1900 | M88: 2300 | N88: 4 | Q88: 24 | T88: 24 | U88: 83 | V88: 0 | AD88: 3.2 | AE88: 8 | AF88: 8 | AG88: 3.2 | AH88: 8 | AI88: 3.2 | AJ88: 8 | AM88: E | AP88: H held for maximum 30mins, only one of 102.017, E
A89: 102.082 | B89: Reject | C89: 2 | D89: Limejump Virtual 8 Ltd | E89: LJDYV-1 | F89: DNO connection | G89: Battery | H89: 2020-03-31 | I89: 2020-09-30 | J89: 31.03.20 - 30.09.20 (6 months) | K89: As per FFR framework agreement | L89: 2300 | M89: 700 | N89: 8 | O89: 2300 | P89: 700 | Q89: 8 | R89: 2300 | S89: 700 | T89: 8 | U89: 83 | V89: 0 | AD89: 3.2 | AE89: 8 | AF89: 8 | AG89: 2.4 | AH89: 6 | AI89: 0 | AJ89: 0 | AP89: H held for maximum 30mins, only one of 102.022, F
A90: 102.083 | B90: Reject | C90: 1.3 | D90: Limejump Virtual 8 Ltd | E90: LJDYV-1 | F90: DNO connection | G90: Battery | H90: 2020-03-31 | I90: 2020-09-30 | J90: 31.03.20 - 30.09.20 (6 months) | K90: As per FFR framework agreement | L90: 2300 | M90: 700 | N90: 8 | O90: 2300 | P90: 700 | Q90: 8 | R90: 2300 | S90: 700 | T90: 8 | U90: 83 | V90: 0 | AD90: 3.2 | AE90: 8 | AF90: 8 | AG90: 2.4 | AH90: 6 | AI90: 2.4 | AJ90: 6 | AM90: F | AP90: H held for maximum 30mins, only one of 102.022, F
A91: 102.084 | B91: Reject | C91: 1.3 | D91: Limejump Virtual 8 Ltd | E91: LJDYV-1 | F91: DNO connection | G91: Battery | H91: 2020-04-01 | I91: 2020-09-30 | J91: 01.04.20 - 30.09.20 (6 months) | K91: As per FFR framework agreement | L91: 700 | M91: 2300 | N91: 16 | O91: 700 | P91: 2300 | Q91: 16 | R91: 700 | S91: 2300 | T91: 16 | U91: 87 | V91: 0 | AD91: 3.2 | AE91: 8 | AF91: 8 | AG91: 3.2 | AH91: 8 | AI91: 3.2 | AJ91: 8 | AM91: F | AP91: H held for maximum 30mins, only one of 102.022, F
A92: 102.085 | B92: Reject | C92: 2 | D92: Limejump Ltd | E92: LJDYQ-1 | F92: DNO connection | G92: Battery | H92: 2020-03-31 | I92: 2020-09-30 | J92: 31.03.20 - 30.09.20 (6 months) | K92: As per FFR framework agreement | L92: 2300 | M92: 700 | N92: 8 | O92: 2300 | P92: 700 | Q92: 8 | R92: 2300 | S92: 700 | T92: 8 | U92: 95 | V92: 0 | AD92: 4 | AE92: 10 | AF92: 10 | AG92: 2.8 | AH92: 7 | AI92: 0 | AJ92: 0 | AP92: H held for maximum 30mins, only one of 102.025, G
A93: 102.086 | B93: Reject | C93: 1.3 | D93: Limejump Ltd | E93: LJDYQ-1 | F93: DNO connection | G93: Battery | H93: 2020-03-31 | I93: 2020-09-30 | J93: 31.03.20 - 30.09.20 (6 months) | K93: As per FFR framework agreement | L93: 2300 | M93: 700 | N93: 8 | O93: 2300 | P93: 700 | Q93: 8 | R93: 2300 | S93: 700 | T93: 8 | U93: 95 | V93: 0 | AD93: 4 | AE93: 10 | AF93: 10 | AG93: 2.8 | AH93: 7 | AI93: 2.8 | AJ93: 7 | AM93: G | AP93: H held for maximum 30mins, only one of 102.025, G
A94: 102.087 | B94: Reject | C94: 1.3 | D94: Limejump Ltd | E94: LJDYQ-1 | F94: DNO connection | G94: Battery | H94: 2020-04-01 | I94: 2020-09-30 | J94: 01.04.20 - 30.09.20 (6 months) | K94: As per FFR framework agreement | L94: 700 | M94: 2300 | N94: 16 | O94: 700 | P94: 2300 | Q94: 16 | R94: 700 | S94: 2300 | T94: 16 | U94: 109 | V94: 0 | AD94: 4 | AE94: 10 | AF94: 10 | AG94: 4 | AH94: 10 | AI94: 4 | AJ94: 10 | AM94: G | AP94: H held for maximum 30mins, only one of 102.025, G
A95: 102.088 | B95: Reject | C95: 1.3 | D95: Limejump Virtual 5 Ltd | E95: LJDYS-1 | F95: DNO connection | G95: Battery | H95: 2019-03-31 | I95: 2019-09-30 | J95: 31.03.19 - 30.09.19 (6 months) | K95: As per FFR framework agreement | L95: 2300 | M95: 700 | N95: 8 | O95: 2300 | P95: 700 | Q95: 8 | R95: 2300 | S95: 700 | T95: 8 | U95: =13.17*AE95 -> 197.55 | V95: 0 | AD95: 6 | AE95: 15 | AF95: 15 | AG95: 6 | AH95: 15 | AI95: 6 | AJ95: 15 | AP95: H held for maximum 30mins
A96: 102.089 | B96: Reject | C96: 1.3 | D96: Limejump Virtual 5 Ltd | E96: LJDYS-1 | F96: DNO connection | G96: Battery | H96: 2019-09-30 | I96: 2020-03-31 | J96: 30.09.19 - 31.03.20 (6 months) | K96: As per FFR framework agreement | L96: 2300 | M96: 700 | N96: 8 | O96: 2300 | P96: 700 | Q96: 8 | R96: 2300 | S96: 700 | T96: 8 | U96: =10.67*AE96 -> 160.05 | V96: 0 | AD96: 6 | AE96: 15 | AF96: 15 | AG96: 6 | AH96: 15 | AI96: 6 | AJ96: 15 | AP96: H held for maximum 30mins
A97: 102.09 | B97: Reject | C97: 1.3 | D97: Limejump Virtual 5 Ltd | E97: LJDYS-1 | F97: DNO connection | G97: Battery | H97: 2020-03-31 | I97: 2020-09-30 | J97: 31.03.20 - 30.09.20 (6 months) | K97: As per FFR framework agreement | L97: 2300 | M97: 700 | N97: 8 | O97: 2300 | P97: 700 | Q97: 8 | R97: 2300 | S97: 700 | T97: 8 | U97: =12.17*AE97 -> 182.55 | V97: 0 | AD97: 6 | AE97: 15 | AF97: 15 | AG97: 6 | AH97: 15 | AI97: 6 | AJ97: 15 | AP97: H held for maximum 30mins
A98: 102.091 | B98: Reject | C98: 1.3 | D98: Limejump Virtual 7 Ltd | E98: LJDYU-1 | F98: DNO connection | G98: Battery | H98: 2019-03-31 | I98: 2019-09-30 | J98: 31.03.19 - 30.09.19 (6 months) | K98: As per FFR framework agreement | L98: 2300 | M98: 700 | N98: 8 | O98: 2300 | P98: 700 | Q98: 8 | R98: 2300 | S98: 700 | T98: 8 | U98: =13.18*AE98 -> 263.6 | V98: 0 | AD98: 8 | AE98: 20 | AF98: 20 | AG98: 8 | AH98: 20 | AI98: 8 | AJ98: 20 | AP98: H held for maximum 30mins
A99: 102.092 | B99: Reject | C99: 1.3 | D99: Limejump Virtual 7 Ltd | E99: LJDYU-1 | F99: DNO connection | G99: Battery | H99: 2019-09-30 | I99: 2020-03-31 | J99: 30.09.19 - 31.03.20 (6 months) | K99: As per FFR framework agreement | L99: 2300 | M99: 700 | N99: 8 | O99: 2300 | P99: 700 | Q99: 8 | R99: 2300 | S99: 700 | T99: 8 | U99: =10.68*AE99 -> 213.6 | V99: 0 | AD99: 8 | AE99: 20 | AF99: 20 | AG99: 8 | AH99: 20 | AI99: 8 | AJ99: 20 | AP99: H held for maximum 30mins
A100: 102.093 | B100: Reject | C100: 1.3 | D100: Limejump Virtual 7 Ltd | E100: LJDYU-1 | F100: DNO connection | G100: Battery | H100: 2020-03-31 | I100: 2020-09-30 | J100: 31.03.20 - 30.09.20 (6 months) | K100: As per FFR framework agreement | L100: 2300 | M100: 700 | N100: 8 | O100: 2300 | P100: 700 | Q100: 8 | R100: 2300 | S100: 700 | T100: 8 | U100: =12.18*AE100 -> 243.6 | V100: 0 | AD100: 8 | AE100: 20 | AF100: 20 | AG100: 8 | AH100: 20 | AI100: 8 | AJ100: 20 | AP100: H held for maximum 30mins
A101: =A100+0.001 -> 102.094 | B101: Accepted | C101: N/A | D101: Limejump Ltd | E101: LJDYN-5 | F101: DNO connection | G101: Battery | H101: 2018-06-30 | I101: 2018-07-31 | J101: 30.06.18 - 31.07.18 (1 months) | K101: As per FFR framework agreement | L101: 2300 | M101: 2300 | N101: 24 | O101: 2300 | P101: 2300 | Q101: 24 | R101: 2300 | S101: 2300 | T101: 24 | U101: =12.5*AE101 -> 125 | V101: 0 | AD101: 4 | AE101: 10 | AF101: 10 | AG101: 4 | AH101: 10 | AI101: 4 | AJ101: 10 | AP101: H held for maximum 30mins
A102: 102.095 | B102: Reject | C102: 1.2 | D102: Limejump Ltd | E102: LJDYN-4 | F102: DNO connection | G102: Battery | H102: 2019-10-01 | I102: 2020-03-31 | J102: 01.10.19 - 31.03.20 (6 months) | K102: As per FFR framework agreement | L102: 2300 | M102: 1500 | N102: 16 | O102: 2300 | P102: 2300 | Q102: 24 | R102: 2300 | S102: 2300 | T102: 24 | U102: =11.24*AE102 -> 112.4 | V102: 0 | AD102: 4 | AE102: 10 | AF102: 10 | AG102: 4 | AH102: 10 | AI102: 4 | AJ102: 10 | AM102: H | AP102: H held for maximum 30mins
A103: 102.096 | B103: Reject | C103: 1.3 | D103: Limejump Ltd | E103: LJDYN-4 | F103: DNO connection | G103: Battery | H103: 2019-10-01 | I103: 2020-03-31 | J103: 01.10.19 - 31.03.20 (6 months) | K103: As per FFR framework agreement | L103: 1900 | M103: 2300 | N103: 4 | Q103: 24 | T103: 24 | U103: =11.24*AE103 -> 112.4 | V103: 0 | AD103: 4 | AE103: 10 | AF103: 10 | AG103: 4 | AH103: 10 | AI103: 4 | AJ103: 10 | AM103: H | AP103: H held for maximum 30mins
A104: 102.097 | B104: Reject | C104: 1.3 | D104: Limejump Ltd | E104: LJDYN-4 | F104: DNO connection | G104: Battery | H104: 2020-04-01 | I104: 2020-09-30 | J104: 01.04.20 - 30.09.20 (6 months) | K104: As per FFR framework agreement | L104: 2300 | M104: 2300 | N104: 24 | O104: 2300 | P104: 2300 | Q104: 24 | R104: 2300 | S104: 2300 | T104: 24 | U104: =11.24*AE104 -> 112.4 | V104: 0 | AD104: 4 | AE104: 10 | AF104: 10 | AG104: 4 | AH104: 10 | AI104: 4 | AJ104: 10 | AP104: H held for maximum 30mins
A105: 102.098 | B105: Reject | C105: 1.3 | D105: Limejump Ltd | E105: LJDYN-6 | F105: DNO connection | G105: Battery | H105: 2019-04-01 | I105: 2019-09-30 | J105: 01.04.19 - 30.09.19 (6 months) | K105: As per FFR framework agreement | L105: 700 | M105: 2300 | N105: 16 | O105: 700 | P105: 2300 | Q105: 16 | R105: 700 | S105: 2300 | T105: 16 | U105: 198.24 | V105: 0 | AD105: 8 | AE105: 20 | AF105: 20 | AH105: 12 | AJ105: 12 | AP105: H held for maximum 30mins
A106: 102.099 | B106: Reject | C106: 1.3 | D106: Limejump Ltd | E106: LJDYN-6 | F106: DNO connection | G106: Battery | H106: 2019-10-01 | I106: 2020-03-31 | J106: 01.10.19 - 31.03.20 (6 months) | K106: As per FFR framework agreement | L106: 700 | M106: 1500 | N106: 8 | O106: 700 | P106: 2300 | Q106: 16 | R106: 700 | S106: 2300 | T106: 16 | U106: 207.8 | V106: 0 | AD106: 8 | AE106: 20 | AF106: 20 | AG106: 8 | AH106: 20 | AI106: 8 | AJ106: 20 | AM106: I | AP106: H held for maximum 30mins
A107: 102.1 | B107: Reject | C107: 1.3 | D107: Limejump Ltd | E107: LJDYN-6 | F107: DNO connection | G107: Battery | H107: 2019-10-01 | I107: 2020-03-31 | J107: 01.10.19 - 31.03.20 (6 months) | K107: As per FFR framework agreement | L107: 1500 | M107: 1900 | N107: 4 | Q107: 24 | T107: 24 | U107: 77.34 | V107: 0 | AD107: 2.4 | AE107: 6 | AF107: 6 | AG107: 2.4 | AH107: 6 | AI107: 2.4 | AJ107: 6 | AM107: I | AP107: H held for maximum 30mins
A108: 102.101 | B108: Reject | C108: 1.3 | D108: Limejump Ltd | E108: LJDYN-6 | F108: DNO connection | G108: Battery | H108: 2019-10-01 | I108: 2020-03-31 | J108: 01.10.19 - 31.03.20 (6 months) | K108: As per FFR framework agreement | L108: 1900 | M108: 2300 | N108: 4 | Q108: 24 | T108: 24 | U108: 207.8 | V108: 0 | AD108: 8 | AE108: 20 | AF108: 20 | AG108: 8 | AH108: 20 | AI108: 8 | AJ108: 20 | AM108: I | AP108: H held for maximum 30mins
A109: 102.102 | B109: Reject | C109: 1.3 | D109: Limejump Ltd | E109: LJDYN-6 | F109: DNO connection | G109: Battery | H109: 2020-04-01 | I109: 2020-09-30 | J109: 01.04.20 - 30.09.20 (6 months) | K109: As per FFR framework agreement | L109: 700 | M109: 2300 | N109: 16 | O109: 700 | P109: 2300 | Q109: 16 | R109: 700 | S109: 2300 | T109: 16 | U109: 217.8 | V109: 0 | AD109: 8 | AE109: 20 | AF109: 20 | AG109: 8 | AH109: 20 | AI109: 8 | AJ109: 20 | AP109: H held for maximum 30mins
A110: 102.103 | B110: Reject | C110: 1.3 | D110: Limejump Virtual 4 Ltd | E110: LJDYR-1 | F110: DNO connection | G110: Battery | H110: 2018-09-30 | I110: 2019-03-31 | J110: 30.09.18 - 31.03.19 (6 months) | K110: As per FFR framework agreement | L110: 2300 | M110: 700 | N110: 8 | O110: 2300 | P110: 700 | Q110: 8 | R110: 2300 | S110: 700 | T110: 8 | U110: 218 | V110: 0 | AD110: 8 | AE110: 20 | AF110: 20 | AG110: 8 | AH110: 20 | AI110: 0 | AJ110: 0 | AP110: H held for maximum 30mins, only one of 102.043, 102.044
A111: 102.104 | B111: Reject | C111: 1.3 | D111: Limejump Virtual 4 Ltd | E111: LJDYR-1 | F111: DNO connection | G111: Battery | H111: 2018-09-30 | I111: 2019-03-31 | J111: 30.09.18 - 31.03.19 (6 months) | K111: As per FFR framework agreement | L111: 2300 | M111: 700 | N111: 8 | O111: 2300 | P111: 700 | Q111: 8 | R111: 2300 | S111: 700 | T111: 8 | U111: 195.8 | V111: 0 | AD111: 8 | AE111: 20 | AF111: 20 | AG111: 4 | AH111: 10 | AI111: 0 | AJ111: 0 | AP111: H held for maximum 30mins, only one of 102.043, 102.044
A112: 102.105 | B112: Reject | C112: 2 | D112: Limejump Virtual 4 Ltd | E112: LJDYR-1 | F112: DNO connection | G112: Battery | H112: 2019-03-31 | I112: 2019-09-30 | J112: 31.03.19 - 30.09.19 (6 months) | K112: As per FFR framework agreement | L112: 2300 | M112: 700 | N112: 8 | O112: 2300 | P112: 700 | Q112: 8 | R112: 2300 | S112: 700 | T112: 8 | U112: 213.2 | V112: 0 | AD112: 8 | AE112: 20 | AF112: 20 | AG112: 4 | AH112: 10 | AI112: 0 | AJ112: 0 | AP112: H held for maximum 30mins, only one of 102.045, J
A113: 102.106 | B113: Reject | C113: 1.3 | D113: Limejump Virtual 4 Ltd | E113: LJDYR-1 | F113: DNO connection | G113: Battery | H113: 2019-03-31 | I113: 2019-09-30 | J113: 31.03.19 - 30.09.19 (6 months) | K113: As per FFR framework agreement | L113: 2300 | M113: 700 | N113: 8 | O113: 2300 | P113: 700 | Q113: 8 | R113: 2300 | S113: 700 | T113: 8 | U113: 213.2 | V113: 0 | AD113: 8 | AE113: 20 | AF113: 20 | AG113: 4 | AH113: 10 | AI113: 4 | AJ113: 10 | AM113: J | AP113: H held for maximum 30mins, only one of 102.045, J
A114: 102.107 | B114: Reject | C114: 1.3 | D114: Limejump Virtual 4 Ltd | E114: LJDYR-1 | F114: DNO connection | G114: Battery | H114: 2019-04-01 | I114: 2019-09-30 | J114: 01.04.19 - 30.09.19 (6 months) | K114: As per FFR framework agreement | L114: 700 | M114: 2300 | N114: 16 | O114: 700 | P114: 2300 | Q114: 16 | R114: 700 | S114: 2300 | T114: 16 | U114: 193.4 | V114: 0 | AD114: 8 | AE114: 20 | AF114: 20 | AG114: 4.8 | AH114: 12 | AI114: 4.8 | AJ114: 12 | AM114: J | AP114: H held for maximum 30mins, only one of 102.045, J
A115: 102.108 | B115: Reject | C115: 1.3 | D115: Limejump Virtual 4 Ltd | E115: LJDYR-1 | F115: DNO connection | G115: Battery | H115: 2019-09-30 | I115: 2020-03-31 | J115: 30.09.19 - 31.03.20 (6 months) | K115: As per FFR framework agreement | L115: 2300 | M115: 700 | N115: 8 | O115: 2300 | P115: 700 | Q115: 8 | R115: 2300 | S115: 700 | T115: 8 | U115: 195.8 | V115: 0 | AD115: 8 | AE115: 20 | AF115: 20 | AG115: 5.2 | AH115: 13 | AI115: 0 | AJ115: 0 | AP115: H held for maximum 30mins, only one of 102.048, K
A116: 102.109 | B116: Reject | C116: 1.3 | D116: Limejump Virtual 4 Ltd | E116: LJDYR-1 | F116: DNO connection | G116: Battery | H116: 2019-09-30 | I116: 2020-03-31 | J116: 30.09.19 - 31.03.20 (6 months) | K116: As per FFR framework agreement | L116: 2300 | M116: 700 | N116: 8 | O116: 2300 | P116: 700 | Q116: 8 | R116: 2300 | S116: 700 | T116: 8 | U116: 195.8 | V116: 0 | AD116: 8 | AE116: 20 | AF116: 20 | AG116: 5.2 | AH116: 13 | AI116: 5.2 | AJ116: 13 | AM116: K | AP116: H held for maximum 30mins, only one of 102.048, K
A117: 102.11 | B117: Reject | C117: 1.3 | D117: Limejump Virtual 4 Ltd | E117: LJDYR-1 | F117: DNO connection | G117: Battery | H117: 2019-10-01 | I117: 2020-03-31 | J117: 01.10.19 - 31.03.20 (6 months) | K117: As per FFR framework agreement | L117: 700 | M117: 1500 | N117: 8 | O117: 700 | P117: 2300 | Q117: 16 | R117: 700 | S117: 2300 | T117: 16 | U117: 227.8 | V117: 0 | AD117: 8 | AE117: 20 | AF117: 20 | AG117: 8 | AH117: 20 | AI117: 8 | AJ117: 20 | AM117: K | AP117: H held for maximum 30mins, only one of 102.048, K
A118: 102.111 | B118: Reject | C118: 1.3 | D118: Limejump Virtual 4 Ltd | E118: LJDYR-1 | F118: DNO connection | G118: Battery | H118: 2019-10-01 | I118: 2020-03-31 | J118: 01.10.19 - 31.03.20 (6 months) | K118: As per FFR framework agreement | L118: 1500 | M118: 1900 | N118: 4 | Q118: 24 | T118: 24 | U118: 64.45 | V118: 0 | AD118: 2 | AE118: 5 | AF118: 5 | AG118: 2 | AH118: 5 | AI118: 2 | AJ118: 5 | AM118: K | AP118: H held for maximum 30mins, only one of 102.048, K
A119: 102.112 | B119: Reject | C119: 1.3 | D119: Limejump Virtual 4 Ltd | E119: LJDYR-1 | F119: DNO connection | G119: Battery | H119: 2019-10-01 | I119: 2020-03-31 | J119: 01.10.19 - 31.03.20 (6 months) | K119: As per FFR framework agreement | L119: 1900 | M119: 2300 | N119: 4 | Q119: 24 | T119: 24 | U119: 227.8 | V119: 0 | AD119: 8 | AE119: 20 | AF119: 20 | AG119: 8 | AH119: 20 | AI119: 8 | AJ119: 20 | AM119: K | AP119: H held for maximum 30mins, only one of 102.048, K
A120: 102.113 | B120: Reject | C120: 2 | D120: Limejump Virtual 4 Ltd | E120: LJDYR-1 | F120: DNO connection | G120: Battery | H120: 2020-03-31 | I120: 2020-09-30 | J120: 31.03.20 - 30.09.20 (6 months) | K120: As per FFR framework agreement | L120: 2300 | M120: 700 | N120: 8 | O120: 2300 | P120: 700 | Q120: 8 | R120: 2300 | S120: 700 | T120: 8 | U120: 234 | V120: 0 | AD120: 8 | AE120: 20 | AF120: 20 | AG120: 6 | AH120: 15 | AI120: 0 | AJ120: 0 | AP120: H held for maximum 30mins, only one of 102.053, L
A121: 102.114 | B121: Reject | C121: 1.3 | D121: Limejump Virtual 4 Ltd | E121: LJDYR-1 | F121: DNO connection | G121: Battery | H121: 2020-03-31 | I121: 2020-09-30 | J121: 31.03.20 - 30.09.20 (6 months) | K121: As per FFR framework agreement | L121: 2300 | M121: 700 | N121: 8 | O121: 2300 | P121: 700 | Q121: 8 | R121: 2300 | S121: 700 | T121: 8 | U121: 234 | V121: 0 | AD121: 8 | AE121: 20 | AF121: 20 | AG121: 6 | AH121: 15 | AI121: 6 | AJ121: 15 | AM121: L | AP121: H held for maximum 30mins, only one of 102.053, L
A122: 102.115 | B122: Reject | C122: 1.3 | D122: Limejump Virtual 4 Ltd | E122: LJDYR-1 | F122: DNO connection | G122: Battery | H122: 2020-04-01 | I122: 2020-09-30 | J122: 01.04.20 - 30.09.20 (6 months) | K122: As per FFR framework agreement | L122: 700 | M122: 2300 | N122: 16 | O122: 700 | P122: 2300 | Q122: 16 | R122: 700 | S122: 2300 | T122: 16 | U122: 217.8 | V122: 0 | AD122: 8 | AE122: 20 | AF122: 20 | AG122: 8 | AH122: 20 | AI122: 8 | AJ122: 20 | AM122: L | AP122: H held for maximum 30mins, only one of 102.053, L
A123: 102.116 | B123: Reject | C123: 1.3 | D123: Limejump Ltd | E123: LJDYN-7 | F123: DNO connection | G123: Battery | H123: 2019-03-31 | I123: 2020-03-31 | J123: 31.03.19 - 31.03.20 (12 months) | K123: As per FFR framework agreement | L123: 2300 | M123: 2300 | N123: 24 | O123: 2300 | P123: 2300 | Q123: 24 | R123: 2300 | S123: 2300 | T123: 24 | U123: 45 | V123: 0 | AD123: 1.2 | AE123: 3 | AF123: 3 | AG123: 1.2 | AH123: 3 | AI123: 1.2 | AJ123: 3 | AP123: H held for maximum 30mins, only one of 102.056, 102.057
A124: 102.117 | B124: Reject | C124: 1.3 | D124: Limejump Ltd | E124: LJDYN-7 | F124: DNO connection | G124: Battery | H124: 2019-04-01 | I124: 2020-03-31 | J124: 01.04.19 - 31.03.20 (12 months) | K124: As per FFR framework agreement | L124: 1900 | M124: 700 | N124: 12 | O124: 1900 | P124: 700 | Q124: 12 | R124: 1900 | S124: 700 | T124: 12 | U124: 45 | V124: 0 | AD124: 1.2 | AE124: 3 | AF124: 3 | AG124: 1.2 | AH124: 3 | AI124: 1.2 | AJ124: 3 | AP124: H held for maximum 30mins, only one of 102.056, 102.057
A125: 102.118 | B125: Reject | C125: 1.3 | D125: Limejump Ltd | E125: LJDYN-1 | F125: DNO connection | G125: Battery | H125: 2019-03-31 | I125: 2019-09-30 | J125: 31.03.19 - 30.09.19 (6 months) | K125: As per FFR framework agreement | L125: 2300 | M125: 2300 | N125: 24 | O125: 2300 | P125: 2300 | Q125: 24 | R125: 2300 | S125: 2300 | T125: 24 | U125: 68 | V125: 0 | AD125: 2 | AE125: 5 | AF125: 5 | AG125: 2 | AH125: 5 | AI125: 2 | AJ125: 5 | AP125: H held for maximum 30mins
A126: 102.119 | B126: Reject | C126: 1.3 | D126: Limejump Ltd | E126: LJDYN-1 | F126: DNO connection | G126: Battery | H126: 2019-09-30 | I126: 2020-03-31 | J126: 30.09.19 - 31.03.20 (6 months) | K126: As per FFR framework agreement | L126: 2300 | M126: 1500 | N126: 16 | O126: 2300 | P126: 2300 | Q126: 24 | R126: 2300 | S126: 2300 | T126: 24 | U126: 136 | V126: 0 | AD126: 4 | AE126: 10 | AF126: 10 | AG126: 4 | AH126: 10 | AI126: 4 | AJ126: 10 | AM126: M | AP126: H held for maximum 30mins
A127: 102.12 | B127: Reject | C127: 1.3 | D127: Limejump Ltd | E127: LJDYN-1 | F127: DNO connection | G127: Battery | H127: 2019-09-30 | I127: 2020-03-31 | J127: 30.09.19 - 31.03.20 (6 months) | K127: As per FFR framework agreement | L127: 1900 | M127: 2300 | N127: 4 | Q127: 24 | T127: 24 | U127: 136 | V127: 0 | AD127: 4 | AE127: 10 | AF127: 10 | AG127: 4 | AH127: 10 | AI127: 4 | AJ127: 10 | AM127: M | AP127: H held for maximum 30mins
A128: 102.121 | B128: Reject | C128: 1.3 | D128: Limejump Ltd | E128: LJDYN-1 | F128: DNO connection | G128: Battery | H128: 2020-03-31 | I128: 2020-09-30 | J128: 31.03.20 - 30.09.20 (6 months) | K128: As per FFR framework agreement | L128: 2300 | M128: 2300 | N128: 24 | O128: 2300 | P128: 2300 | Q128: 24 | R128: 2300 | S128: 2300 | T128: 24 | U128: 136 | V128: 0 | AD128: 4 | AE128: 10 | AF128: 10 | AG128: 4 | AH128: 10 | AI128: 4 | AJ128: 10 | AP128: H held for maximum 30mins
A129: 102.122 | B129: Reject | C129: 1.3 | D129: Limejump Ltd | E129: LJDYN-2 | F129: DNO connection | G129: Other | H129: 2019-03-31 | I129: 2019-09-30 | J129: 31.03.19 - 30.09.19 (6 months) | K129: As per FFR framework agreement | L129: 2300 | M129: 2300 | N129: 24 | O129: 2300 | P129: 2300 | Q129: 24 | R129: 2300 | S129: 2300 | T129: 24 | U129: 160 | V129: 0 | AD129: 3.2 | AE129: 8 | AF129: 8 | AG129: 4 | AH129: 10 | AI129: 3.2 | AJ129: 8 | AP129: H held for maximum 30mins
A130: 102.123 | B130: Reject | C130: 1.3 | D130: Limejump Ltd | E130: LJDYN-2 | F130: DNO connection | G130: Other | H130: 2019-09-30 | I130: 2020-03-31 | J130: 30.09.19 - 31.03.20 (6 months) | K130: As per FFR framework agreement | L130: 2300 | M130: 1500 | N130: 16 | O130: 2300 | P130: 2300 | Q130: 24 | R130: 2300 | S130: 2300 | T130: 24 | U130: 160 | V130: 0 | AD130: 3.2 | AE130: 8 | AF130: 8 | AG130: 4 | AH130: 10 | AI130: 3.2 | AJ130: 8 | AM130: N | AP130: H held for maximum 30mins
A131: 102.124 | B131: Reject | C131: 1.3 | D131: Limejump Ltd | E131: LJDYN-2 | F131: DNO connection | G131: Other | H131: 2019-09-30 | I131: 2020-03-31 | J131: 30.09.19 - 31.03.20 (6 months) | K131: As per FFR framework agreement | L131: 1900 | M131: 2300 | N131: 4 | Q131: 24 | T131: 24 | U131: 160 | V131: 0 | AD131: 3.2 | AE131: 8 | AF131: 8 | AG131: 4 | AH131: 10 | AI131: 3.2 | AJ131: 8 | AM131: N | AP131: H held for maximum 30mins
A132: 102.125 | B132: Reject | C132: 1.3 | D132: Limejump Ltd | E132: LJDYN-2 | F132: DNO connection | G132: Other | H132: 2020-03-31 | I132: 2020-09-30 | J132: 31.03.20 - 30.09.20 (6 months) | K132: As per FFR framework agreement | L132: 2300 | M132: 2300 | N132: 24 | O132: 2300 | P132: 2300 | Q132: 24 | R132: 2300 | S132: 2300 | T132: 24 | U132: 160 | V132: 0 | AD132: 3.2 | AE132: 8 | AF132: 8 | AG132: 4 | AH132: 10 | AI132: 3.2 | AJ132: 8 | AP132: H held for maximum 30mins
A133: 102.126 | B133: Reject | C133: 1.3 | D133: Limejump Ltd | E133: LJDYP-2 | F133: DNO connection | G133: Battery | H133: 2018-06-30 | I133: 2019-03-31 | J133: 30.06.18 - 31.03.19 (9 months) | K133: As per FFR framework agreement | L133: 2300 | M133: 700 | N133: 8 | O133: 2300 | P133: 700 | Q133: 8 | R133: 2300 | S133: 700 | T133: =IF(R133>S133, (2400-R133+S133)/100, IF(R133=S133, 24, (S133-R133)/100)) -> 8 | U133: 214.6 | V133: 0 | AD133: 8 | AE133: 20 | AF133: 20 | AG133: 8 | AH133: 20 | AI133: 8 | AJ133: 20 | AM133: O | AP133: H held for maximum 30mins, only one of O, P
A134: 102.127 | B134: Reject | C134: 1.3 | D134: Limejump Ltd | E134: LJDYP-2 | F134: DNO connection | G134: Battery | H134: 2019-03-31 | I134: 2019-09-30 | J134: 31.03.19 - 30.09.19 (6 months) | K134: As per FFR framework agreement | L134: 2300 | M134: 2300 | N134: =IF(L134>M134, (2400-L134+M134)/100, IF(L134=M134, 24, (M134-L134)/100)) -> 24 | O134: 2300 | P134: 2300 | Q134: =IF(O134>P134, (2400-O134+P134)/100, IF(O134=P134, 24, (P134-O134)/100)) -> 24 | R134: 2300 | S134: 2300 | T134: 24 | U134: 198.2 | V134: 0 | AD134: 8 | AE134: 20 | AF134: 20 | AG134: 8 | AH134: 20 | AI134: 8 | AJ134: 20 | AM134: O | AP134: H held for maximum 30mins, only one of O, P
A135: 102.128 | B135: Reject | C135: 1.3 | D135: Limejump Ltd | E135: LJDYP-2 | F135: DNO connection | G135: Battery | H135: 2019-09-30 | I135: 2020-03-31 | J135: =TEXT(H135,"DD.MM.YY")&" - "&TEXT(I135,"DD.MM.YY")&" ("&DATEDIF(H135,I135+1,"m")&" months)" -> 30.09.19 - 31.03.20 (6 months) | K135: As per FFR framework agreement | L135: 2300 | M135: 2300 | N135: 24 | O135: 2300 | P135: 2300 | Q135: 24 | R135: 2300 | S135: 2300 | T135: 24 | U135: 198.2 | V135: 0 | AD135: 8 | AE135: 20 | AF135: 20 | AG135: 8 | AH135: 20 | AI135: 8 | AJ135: 20 | AM135: O | AP135: H held for maximum 30mins, only one of O, P
A136: 102.129 | B136: Reject | C136: 1.3 | D136: Limejump Ltd | E136: LJDYP-2 | F136: DNO connection | G136: Battery | H136: 2020-03-31 | I136: 2020-09-30 | J136: 31.03.20 - 30.09.20 (6 months) | K136: As per FFR framework agreement | L136: 2300 | M136: 2300 | N136: 24 | O136: 2300 | P136: 2300 | Q136: 24 | R136: 2300 | S136: 2300 | T136: 24 | U136: 198.2 | V136: 0 | AD136: 8 | AE136: 20 | AF136: 20 | AG136: 8 | AH136: 20 | AI136: 8 | AJ136: 20 | AM136: O | AP136: H held for maximum 30mins, only one of O, P
A137: 102.13 | B137: Reject | C137: 1.3 | D137: Limejump Ltd | E137: LJDYP-2 | F137: DNO connection | G137: Battery | H137: 2018-06-30 | I137: 2019-03-31 | J137: 30.06.18 - 31.03.19 (9 months) | K137: As per FFR framework agreement | L137: 2300 | M137: 700 | N137: 8 | O137: 2300 | P137: 700 | Q137: 8 | R137: 2300 | S137: 700 | T137: 8 | U137: 246.8 | V137: 0 | AD137: 8 | AE137: 20 | AF137: 20 | AG137: 8 | AH137: 20 | AI137: 8 | AJ137: 20 | AM137: P | AP137: H held for maximum 30mins, only one of O, P
A138: 102.131 | B138: Reject | C138: 1.3 | D138: Limejump Ltd | E138: LJDYP-2 | F138: DNO connection | G138: Battery | H138: 2019-03-31 | I138: 2019-09-30 | J138: 31.03.19 - 30.09.19 (6 months) | K138: As per FFR framework agreement | L138: 2300 | M138: 700 | N138: 8 | O138: 2300 | P138: 700 | Q138: 8 | R138: 2300 | S138: 700 | T138: 8 | U138: 246.8 | V138: 0 | AD138: 8 | AE138: 20 | AF138: 20 | AG138: 8 | AH138: 20 | AI138: 8 | AJ138: 20 | AM138: P | AP138: H held for maximum 30mins, only one of O, P
A139: 102.132 | B139: Reject | C139: 1.3 | D139: Limejump Ltd | E139: LJDYP-2 | F139: DNO connection | G139: Battery | H139: 2019-09-30 | I139: 2020-03-31 | J139: 30.09.19 - 31.03.20 (6 months) | K139: As per FFR framework agreement | L139: 2300 | M139: 700 | N139: 8 | O139: 2300 | P139: 700 | Q139: 8 | R139: 2300 | S139: 700 | T139: 8 | U139: 246.8 | V139: 0 | AD139: 8 | AE139: 20 | AF139: 20 | AG139: 8 | AH139: 20 | AI139: 8 | AJ139: 20 | AM139: P | AP139: H held for maximum 30mins, only one of O, P
A140: 102.133 | B140: Reject | C140: 1.3 | D140: Limejump Ltd | E140: LJDYP-2 | F140: DNO connection | G140: Battery | H140: 2020-03-31 | I140: 2020-09-30 | J140: 31.03.20 - 30.09.20 (6 months) | K140: As per FFR framework agreement | L140: 2300 | M140: 700 | N140: 8 | O140: 2300 | P140: 700 | Q140: 8 | R140: 2300 | S140: 700 | T140: 8 | U140: 246.8 | V140: 0 | AD140: 8 | AE140: 20 | AF140: 20 | AG140: 8 | AH140: 20 | AI140: 8 | AJ140: 20 | AM140: P | AP140: H held for maximum 30mins, only one of O, P
A141: 102.134 | B141: Reject | C141: 1.3 | D141: Limejump Ltd | E141: LJDYP-4 | F141: DNO connection | G141: Battery | H141: 2018-06-30 | I141: 2019-03-31 | J141: 30.06.18 - 31.03.19 (9 months) | K141: As per FFR framework agreement | L141: 2300 | M141: 700 | N141: 8 | O141: 2300 | P141: 700 | Q141: 8 | R141: 2300 | S141: 700 | T141: 8 | U141: 118.8 | V141: 0 | AD141: 4 | AE141: 10 | AF141: 10 | AG141: 4 | AH141: 10 | AI141: 4 | AJ141: 10 | AM141: Q | AP141: H held for maximum 30mins, only one of Q, R
A142: 102.135 | B142: Reject | C142: 1.3 | D142: Limejump Ltd | E142: LJDYP-4 | F142: DNO connection | G142: Battery | H142: 2019-03-31 | I142: 2019-09-30 | J142: 31.03.19 - 30.09.19 (6 months) | K142: As per FFR framework agreement | L142: 2300 | M142: 2300 | N142: 24 | O142: 2300 | P142: 2300 | Q142: 24 | R142: 2300 | S142: 2300 | T142: 24 | U142: 114.8 | V142: 0 | AD142: 4 | AE142: 10 | AF142: 10 | AG142: 4 | AH142: 10 | AI142: 4 | AJ142: 10 | AM142: Q | AP142: H held for maximum 30mins, only one of Q, R
A143: 102.136 | B143: Reject | C143: 1.3 | D143: Limejump Ltd | E143: LJDYP-4 | F143: DNO connection | G143: Battery | H143: 2019-09-30 | I143: 2020-03-31 | J143: 30.09.19 - 31.03.20 (6 months) | K143: As per FFR framework agreement | L143: 2300 | M143: 2300 | N143: 24 | O143: 2300 | P143: 2300 | Q143: 24 | R143: 2300 | S143: 2300 | T143: 24 | U143: 114.8 | V143: 0 | AD143: 4 | AE143: 10 | AF143: 10 | AG143: 4 | AH143: 10 | AI143: 4 | AJ143: 10 | AM143: Q | AP143: H held for maximum 30mins, only one of Q, R
A144: 102.137 | B144: Reject | C144: 1.3 | D144: Limejump Ltd | E144: LJDYP-4 | F144: DNO connection | G144: Battery | H144: 2020-03-31 | I144: 2020-09-30 | J144: 31.03.20 - 30.09.20 (6 months) | K144: As per FFR framework agreement | L144: 2300 | M144: 2300 | N144: 24 | O144: 2300 | P144: 2300 | Q144: 24 | R144: 2300 | S144: 2300 | T144: 24 | U144: 114.8 | V144: 0 | AD144: 4 | AE144: 10 | AF144: 10 | AG144: 4 | AH144: 10 | AI144: 4 | AJ144: 10 | AM144: Q | AP144: H held for maximum 30mins, only one of Q, R
A145: 102.138 | B145: Reject | C145: 1.3 | D145: Limejump Ltd | E145: LJDYP-4 | F145: DNO connection | G145: Battery | H145: 2018-06-30 | I145: 2019-03-31 | J145: 30.06.18 - 31.03.19 (9 months) | K145: As per FFR framework agreement | L145: 2300 | M145: 700 | N145: 8 | O145: 2300 | P145: 700 | Q145: 8 | R145: 2300 | S145: 700 | T145: 8 | U145: 136.6 | V145: 0 | AD145: 4 | AE145: 10 | AF145: 10 | AG145: 4 | AH145: 10 | AI145: 4 | AJ145: 10 | AM145: R | AP145: H held for maximum 30mins, only one of Q, R
A146: =A145+0.001 -> 102.139 | B146: Reject | C146: 1.3 | D146: Limejump Ltd | E146: LJDYP-4 | F146: DNO connection | G146: Battery | H146: 2019-03-31 | I146: 2019-09-30 | J146: 31.03.19 - 30.09.19 (6 months) | K146: As per FFR framework agreement | L146: 2300 | M146: 700 | N146: 8 | O146: 2300 | P146: 700 | Q146: 8 | R146: 2300 | S146: 700 | T146: 8 | U146: 136.6 | V146: 0 | AD146: 4 | AE146: 10 | AF146: 10 | AG146: 4 | AH146: 10 | AI146: 4 | AJ146: 10 | AM146: R | AP146: H held for maximum 30mins, only one of Q, R
A147: 102.14 | B147: Reject | C147: 1.3 | D147: Limejump Ltd | E147: LJDYP-4 | F147: DNO connection | G147: Battery | H147: 2019-09-30 | I147: 2020-03-31 | J147: 30.09.19 - 31.03.20 (6 months) | K147: As per FFR framework agreement | L147: 2300 | M147: 700 | N147: 8 | O147: 2300 | P147: 700 | Q147: 8 | R147: 2300 | S147: 700 | T147: 8 | U147: 136.6 | V147: 0 | AD147: 4 | AE147: 10 | AF147: 10 | AG147: 4 | AH147: 10 | AI147: 4 | AJ147: 10 | AM147: R | AP147: H held for maximum 30mins, only one of Q, R
A148: 102.141 | B148: Reject | C148: 1.3 | D148: Limejump Ltd | E148: LJDYP-4 | F148: DNO connection | G148: Battery | H148: 2020-03-31 | I148: 2020-09-30 | J148: 31.03.20 - 30.09.20 (6 months) | K148: As per FFR framework agreement | L148: 2300 | M148: 700 | N148: 8 | O148: 2300 | P148: 700 | Q148: 8 | R148: 2300 | S148: 700 | T148: 8 | U148: 136.6 | V148: 0 | AD148: 4 | AE148: 10 | AF148: 10 | AG148: 4 | AH148: 10 | AI148: 4 | AJ148: 10 | AM148: R | AP148: H held for maximum 30mins, only one of Q, R
A149: 102.142 | B149: Reject | C149: 1.3 | D149: Limejump Ltd | E149: LJDYP-3 | F149: DNO connection | G149: Battery | H149: 2019-03-31 | I149: 2019-09-30 | J149: 31.03.19 - 30.09.19 (6 months) | K149: As per FFR framework agreement | L149: 2300 | M149: 2300 | N149: 24 | O149: 2300 | P149: 2300 | Q149: 24 | R149: 2300 | S149: 2300 | T149: 24 | U149: 47.16 | V149: 0 | AD149: 1.6 | AE149: 4 | AF149: 4 | AG149: 1.6 | AH149: 4 | AI149: 1.6 | AJ149: 4 | AM149: S | AP149: H held for maximum 30mins, only one of S, T
A150: 102.143 | B150: Reject | C150: 1.3 | D150: Limejump Ltd | E150: LJDYP-3 | F150: DNO connection | G150: Battery | H150: 2019-09-30 | I150: 2020-03-31 | J150: 30.09.19 - 31.03.20 (6 months) | K150: As per FFR framework agreement | L150: 2300 | M150: 2300 | N150: 24 | O150: 2300 | P150: 2300 | Q150: 24 | R150: 2300 | S150: 2300 | T150: 24 | U150: 47.16 | V150: 0 | AD150: 1.6 | AE150: 4 | AF150: 4 | AG150: 1.6 | AH150: 4 | AI150: 1.6 | AJ150: 4 | AM150: S | AP150: H held for maximum 30mins, only one of S, T
A151: 102.144 | B151: Reject | C151: 1.3 | D151: Limejump Ltd | E151: LJDYP-3 | F151: DNO connection | G151: Battery | H151: 2020-03-31 | I151: 2020-09-30 | J151: 31.03.20 - 30.09.20 (6 months) | K151: As per FFR framework agreement | L151: 2300 | M151: 2300 | N151: 24 | O151: 2300 | P151: 2300 | Q151: 24 | R151: 2300 | S151: 2300 | T151: 24 | U151: 47.16 | V151: 0 | AD151: 1.6 | AE151: 4 | AF151: 4 | AG151: 1.6 | AH151: 4 | AI151: 1.6 | AJ151: 4 | AM151: S | AP151: H held for maximum 30mins, only one of S, T
A152: 102.145 | B152: Reject | C152: 1.3 | D152: Limejump Ltd | E152: LJDYP-3 | F152: DNO connection | G152: Battery | H152: 2019-03-31 | I152: 2019-09-30 | J152: 31.03.19 - 30.09.19 (6 months) | K152: As per FFR framework agreement | L152: 2300 | M152: 700 | N152: 8 | O152: 2300 | P152: 700 | Q152: 8 | R152: 2300 | S152: 700 | T152: 8 | U152: 62 | V152: 0 | AD152: 1.6 | AE152: 4 | AF152: 4 | AG152: 1.6 | AH152: 4 | AI152: 1.6 | AJ152: 4 | AM152: T | AP152: H held for maximum 30mins, only one of S, T
A153: 102.146 | B153: Reject | C153: 1.3 | D153: Limejump Ltd | E153: LJDYP-3 | F153: DNO connection | G153: Battery | H153: 2019-09-30 | I153: 2020-03-31 | J153: 30.09.19 - 31.03.20 (6 months) | K153: As per FFR framework agreement | L153: 2300 | M153: 700 | N153: 8 | O153: 2300 | P153: 700 | Q153: 8 | R153: 2300 | S153: 700 | T153: 8 | U153: 62 | V153: 0 | AD153: 1.6 | AE153: 4 | AF153: 4 | AG153: 1.6 | AH153: 4 | AI153: 1.6 | AJ153: 4 | AM153: T | AP153: H held for maximum 30mins, only one of S, T
A154: 102.147 | B154: Reject | C154: 1.3 | D154: Limejump Ltd | E154: LJDYP-3 | F154: DNO connection | G154: Battery | H154: 2020-03-31 | I154: 2020-09-30 | J154: 31.03.20 - 30.09.20 (6 months) | K154: As per FFR framework agreement | L154: 2300 | M154: 700 | N154: 8 | O154: 2300 | P154: 700 | Q154: 8 | R154: 2300 | S154: 700 | T154: 8 | U154: 62 | V154: 0 | AD154: 1.6 | AE154: 4 | AF154: 4 | AG154: 1.6 | AH154: 4 | AI154: 1.6 | AJ154: 4 | AM154: T | AP154: H held for maximum 30mins, only one of S, T
A155: 102.148 | B155: Reject | C155: 1.3 | D155: Equinicity | E155: NKEQ-1 | F155: DNO connection | G155: hybrid | H155: 2019-03-31 | I155: 2019-09-30 | J155: 31.03.19 - 30.09.19 (6 months) | K155: As per FFR framework agreement | L155: 2300 | M155: 2300 | N155: 24 | O155: 2300 | P155: 2300 | Q155: 24 | R155: 2300 | S155: 2300 | T155: 24 | U155: 224 | Y155: YES | AD155: 8 | AE155: 20 | AF155: 20 | AG155: 8 | AH155: 20 | AI155: 3.6 | AJ155: 9 | AM155: A
A156: 102.149 | B156: Reject | C156: 1.3 | D156: Equinicity | E156: NKEQ-1 | F156: DNO connection | G156: hybrid | H156: 2019-09-30 | I156: 2020-03-31 | J156: 30.09.19 - 31.03.20 (6 months) | K156: As per FFR framework agreement | L156: 2300 | M156: 2300 | N156: 24 | O156: 2300 | P156: 2300 | Q156: 24 | R156: 2300 | S156: 2300 | T156: 24 | U156: 560 | Y156: YES | AD156: 20 | AE156: 50 | AF156: 50 | AG156: 20 | AH156: 50 | AI156: 19.6 | AJ156: 49 | AM156: A
A157: 102.15 | B157: Reject | C157: 1.3 | D157: Equinicity | E157: NKEQ-1 | F157: DNO connection | G157: hybrid | H157: 2020-03-31 | I157: 2020-09-30 | J157: 31.03.20 - 30.09.20 (6 months) | K157: As per FFR framework agreement | L157: 2300 | M157: 2300 | N157: 24 | O157: 2300 | P157: 2300 | Q157: 24 | R157: 2300 | S157: 2300 | T157: 24 | U157: 560 | Y157: YES | AD157: 20 | AE157: 50 | AF157: 50 | AG157: 20 | AH157: 50 | AI157: 19.6 | AJ157: 49 | AM157: A
A158: 102.151 | B158: Reject | C158: 1.3 | D158: Equinicity | E158: NKEQ-2 | F158: DNO connection | G158: hybrid | H158: 2019-03-31 | I158: 2019-09-30 | J158: 31.03.19 - 30.09.19 (6 months) | K158: As per FFR framework agreement | L158: 2300 | M158: 2300 | N158: 24 | O158: 2300 | P158: 2300 | Q158: 24 | R158: 2300 | S158: 2300 | T158: 24 | U158: 198 | Y158: YES | AD158: 7.2 | AE158: 18 | AF158: 18 | AG158: 7.2 | AH158: 18 | AI158: 2.8 | AJ158: 7 | AM158: B
A159: 102.152 | B159: Reject | C159: 1.3 | D159: Equinicity | E159: NKEQ-2 | F159: DNO connection | G159: hybrid | H159: 2019-09-30 | I159: 2020-03-31 | J159: 30.09.19 - 31.03.20 (6 months) | K159: As per FFR framework agreement | L159: 2300 | M159: 2300 | N159: 24 | O159: 2300 | P159: 2300 | Q159: 24 | R159: 2300 | S159: 2300 | T159: 24 | U159: 253 | Y159: YES | AD159: 9.2 | AE159: 23 | AF159: 23 | AG159: 9.2 | AH159: 23 | AI159: 4.8 | AJ159: 12 | AM159: B
A160: 102.153 | B160: Reject | C160: 1.3 | D160: Equinicity | E160: NKEQ-2 | F160: DNO connection | G160: hybrid | H160: 2020-03-31 | I160: 2020-09-30 | J160: 31.03.20 - 30.09.20 (6 months) | K160: As per FFR framework agreement | L160: 2300 | M160: 2300 | N160: 24 | O160: 2300 | P160: 2300 | Q160: 24 | R160: 2300 | S160: 2300 | T160: 24 | U160: 253 | Y160: YES | AD160: 9.2 | AE160: 23 | AF160: 23 | AG160: 9.2 | AH160: 23 | AI160: 4.8 | AJ160: 12 | AM160: B
A161: 102.154 | B161: Reject | C161: 1.3 | D161: Equinicity | E161: NKEQ-3 | F161: DNO connection | G161: hybrid | H161: 2019-03-31 | I161: 2019-09-30 | J161: 31.03.19 - 30.09.19 (6 months) | K161: As per FFR framework agreement | L161: 2300 | M161: 2300 | N161: 24 | O161: 2300 | P161: 2300 | Q161: 24 | R161: 2300 | S161: 2300 | T161: 24 | U161: 345 | Y161: YES | AD161: 11.6 | AE161: 29 | AF161: 29 | AG161: 11.6 | AH161: 29 | AI161: 11.6 | AJ161: 29 | AM161: C
A162: 102.155 | B162: Reject | C162: 1.3 | D162: Equinicity | E162: NKEQ-3 | F162: DNO connection | G162: hybrid | H162: 2019-09-30 | I162: 2020-03-31 | J162: 30.09.19 - 31.03.20 (6 months) | K162: As per FFR framework agreement | L162: 2300 | M162: 2300 | N162: 24 | O162: 2300 | P162: 2300 | Q162: 24 | R162: 2300 | S162: 2300 | T162: 24 | U162: 345 | Y162: YES | AD162: 11.6 | AE162: 29 | AF162: 29 | AG162: 11.6 | AH162: 29 | AI162: 11.6 | AJ162: 29 | AM162: C
A163: 102.156 | B163: Reject | C163: 1.3 | D163: Equinicity | E163: NKEQ-3 | F163: DNO connection | G163: hybrid | H163: 2020-03-31 | I163: 2020-09-30 | J163: 31.03.20 - 30.09.20 (6 months) | K163: As per FFR framework agreement | L163: 2300 | M163: 2300 | N163: 24 | O163: 2300 | P163: 2300 | Q163: 24 | R163: 2300 | S163: 2300 | T163: 24 | U163: 345 | Y163: YES | AD163: 11.6 | AE163: 29 | AF163: 29 | AG163: 11.6 | AH163: 29 | AI163: 11.6 | AJ163: 29 | AM163: C
A164: 102.157 | B164: Reject | C164: 1.3 | D164: Equinicity | E164: NKEQ-4 | F164: DNO connection | G164: hybrid | H164: 2019-09-30 | I164: 2020-03-31 | J164: 30.09.19 - 31.03.20 (6 months) | K164: As per FFR framework agreement | L164: 2300 | M164: 2300 | N164: 24 | O164: 2300 | P164: 2300 | Q164: 24 | R164: 2300 | S164: 2300 | T164: 24 | U164: 583 | Y164: YES | AD164: 19.6 | AE164: 49 | AF164: 49 | AG164: 19.6 | AH164: 49 | AI164: 19.6 | AJ164: 49 | AM164: D
A165: 102.158 | B165: Reject | C165: 1.3 | D165: Equinicity | E165: NKEQ-4 | F165: DNO connection | G165: hybrid | H165: 2020-03-31 | I165: 2020-09-30 | J165: 31.03.20 - 30.09.20 (6 months) | K165: As per FFR framework agreement | L165: 2300 | M165: 2300 | N165: 24 | O165: 2300 | P165: 2300 | Q165: 24 | R165: 2300 | S165: 2300 | T165: 24 | U165: 583 | Y165: YES | AD165: 19.6 | AE165: 49 | AF165: 49 | AG165: 19.6 | AH165: 49 | AI165: 19.6 | AJ165: 49 | AM165: D
A166: 102.159 | B166: Reject | C166: 1.3 | D166: Equinicity | E166: NKEQ-5 | F166: DNO connection | G166: hybrid | H166: 2019-03-31 | I166: 2019-09-30 | J166: 31.03.19 - 30.09.19 (6 months) | K166: As per FFR framework agreement | L166: 2300 | M166: 2300 | N166: 24 | O166: 2300 | P166: 2300 | Q166: 24 | R166: 2300 | S166: 2300 | T166: 24 | U166: 119 | Y166: YES | AD166: 4 | AE166: 10 | AF166: 10 | AG166: 4 | AH166: 10 | AI166: 4 | AJ166: 10 | AM166: E
A167: 102.16 | B167: Reject | C167: 1.3 | D167: Equinicity | E167: NKEQ-5 | F167: DNO connection | G167: hybrid | H167: 2019-09-30 | I167: 2020-03-31 | J167: 30.09.19 - 31.03.20 (6 months) | K167: As per FFR framework agreement | L167: 2300 | M167: 2300 | N167: 24 | O167: 2300 | P167: 2300 | Q167: 24 | R167: 2300 | S167: 2300 | T167: 24 | U167: 690 | Y167: YES | AD167: 24 | AE167: 60 | AF167: 60 | AG167: 24 | AH167: 60 | AI167: 24 | AJ167: 40 | AM167: E
A168: 102.161 | B168: Reject | C168: 1.3 | D168: Equinicity | E168: NKEQ-5 | F168: DNO connection | G168: hybrid | H168: 2020-03-31 | I168: 2020-09-30 | J168: 31.03.20 - 30.09.20 (6 months) | K168: As per FFR framework agreement | L168: 2300 | M168: 2300 | N168: 24 | O168: 2300 | P168: 2300 | Q168: 24 | R168: 2300 | S168: 2300 | T168: 24 | U168: 690 | Y168: YES | AD168: 24 | AE168: 60 | AF168: 60 | AG168: 24 | AH168: 60 | AI168: 24 | AJ168: 40 | AM168: E
A169: 102.162 | B169: Reject | C169: 1.3 | D169: Equinicity | E169: NKEQ-6 | F169: DNO connection | G169: hybrid | H169: 2019-09-30 | I169: 2020-03-31 | J169: 30.09.19 - 31.03.20 (6 months) | K169: As per FFR framework agreement | L169: 2300 | M169: 2300 | N169: 24 | O169: 2300 | P169: 2300 | Q169: 24 | R169: 2300 | S169: 2300 | T169: 24 | U169: 220 | Y169: YES | AD169: 8 | AE169: 20 | AF169: 20 | AG169: 8 | AH169: 20 | AI169: 3.6 | AJ169: 9 | AM169: F
A170: 102.163 | B170: Reject | C170: 1.3 | D170: Equinicity | E170: NKEQ-6 | F170: DNO connection | G170: hybrid | H170: 2020-03-31 | I170: 2020-09-30 | J170: 31.03.20 - 30.09.20 (6 months) | K170: As per FFR framework agreement | L170: 2300 | M170: 2300 | N170: 24 | O170: 2300 | P170: 2300 | Q170: 24 | R170: 2300 | S170: 2300 | T170: 24 | U170: 220 | Y170: YES | AD170: 8 | AE170: 20 | AF170: 20 | AG170: 8 | AH170: 20 | AI170: 3.6 | AJ170: 9 | AM170: F
A171: 102.164 | B171: Reject | C171: 1.3 | D171: Equinicity | E171: NKEQ-1 | F171: DNO connection | G171: hybrid | H171: 2019-03-31 | I171: 2019-09-30 | J171: 31.03.19 - 30.09.19 (6 months) | K171: As per FFR framework agreement | L171: 2300 | M171: 700 | N171: 8 | O171: 2300 | P171: 700 | Q171: 8 | R171: 2300 | S171: 700 | T171: 8 | U171: 200 | Y171: YES | AD171: 8 | AE171: 20 | AF171: 20 | AG171: 8 | AH171: 20 | AI171: 3.2 | AJ171: 8 | AM171: G
A172: 102.165 | B172: Reject | C172: 1.3 | D172: Equinicity | E172: NKEQ-1 | F172: DNO connection | G172: hybrid | H172: 2019-04-01 | I172: 2019-09-30 | J172: 01.04.19 - 30.09.19 (6 months) | K172: As per FFR framework agreement | L172: 700 | M172: 1500 | N172: 8 | O172: 700 | P172: 1500 | Q172: 8 | R172: 700 | S172: 1500 | T172: 8 | U172: 200 | Y172: YES | AD172: 8 | AE172: 20 | AF172: 20 | AG172: 8 | AH172: 20 | AI172: 3.6 | AJ172: 9 | AM172: G
A173: 102.166 | B173: Reject | C173: 1.3 | D173: Equinicity | E173: NKEQ-1 | F173: DNO connection | G173: hybrid | H173: 2019-04-01 | I173: 2019-09-30 | J173: 01.04.19 - 30.09.19 (6 months) | K173: As per FFR framework agreement | L173: 1900 | M173: 2300 | N173: 4 | O173: 1900 | P173: 2300 | Q173: 4 | R173: 1900 | S173: 2300 | T173: 4 | U173: 200 | Y173: YES | AD173: 8 | AE173: 20 | AF173: 20 | AG173: 8 | AH173: 20 | AI173: 3.6 | AJ173: 9 | AM173: G
A174: 102.167 | B174: Reject | C174: 1.3 | D174: Equinicity | E174: NKEQ-1 | F174: DNO connection | G174: hybrid | H174: 2019-09-30 | I174: 2020-03-31 | J174: 30.09.19 - 31.03.20 (6 months) | K174: As per FFR framework agreement | L174: 2300 | M174: 700 | N174: 8 | O174: 2300 | P174: 700 | Q174: 8 | R174: 2300 | S174: 700 | T174: 8 | U174: 500 | Y174: YES | AD174: 20 | AE174: 50 | AF174: 50 | AG174: 20 | AH174: 50 | AI174: 16.4 | AJ174: 41 | AM174: G
A175: 102.168 | B175: Reject | C175: 1.3 | D175: Equinicity | E175: NKEQ-1 | F175: DNO connection | G175: hybrid | H175: 2019-10-01 | I175: 2020-03-31 | J175: 01.10.19 - 31.03.20 (6 months) | K175: As per FFR framework agreement | L175: 700 | M175: 1500 | N175: 8 | O175: 700 | P175: 1500 | Q175: 8 | R175: 700 | S175: 1500 | T175: 8 | U175: 500 | Y175: YES | AD175: 20 | AE175: 50 | AF175: 50 | AG175: 20 | AH175: 50 | AI175: 19.6 | AJ175: 49 | AM175: G
A176: 102.169 | B176: Reject | C176: 1.3 | D176: Equinicity | E176: NKEQ-1 | F176: DNO connection | G176: hybrid | H176: 2019-10-01 | I176: 2020-03-31 | J176: 01.10.19 - 31.03.20 (6 months) | K176: As per FFR framework agreement | L176: 1900 | M176: 2300 | N176: 4 | O176: 1900 | P176: 2300 | Q176: 4 | R176: 1900 | S176: 2300 | T176: 4 | U176: 500 | Y176: YES | AD176: 20 | AE176: 50 | AF176: 50 | AG176: 20 | AH176: 50 | AI176: 19.6 | AJ176: 49 | AM176: G
A177: 102.17 | B177: Reject | C177: 1.3 | D177: Equinicity | E177: NKEQ-1 | F177: DNO connection | G177: hybrid | H177: 2020-03-31 | I177: 2020-09-30 | J177: 31.03.20 - 30.09.20 (6 months) | K177: As per FFR framework agreement | L177: 2300 | M177: 700 | N177: 8 | O177: 2300 | P177: 700 | Q177: 8 | R177: 2300 | S177: 700 | T177: 8 | U177: 500 | Y177: YES | AD177: 20 | AE177: 50 | AF177: 50 | AG177: 20 | AH177: 50 | AI177: 16.4 | AJ177: 41 | AM177: G
A178: 102.171 | B178: Reject | C178: 1.3 | D178: Equinicity | E178: NKEQ-1 | F178: DNO connection | G178: hybrid | H178: 2020-04-01 | I178: 2020-09-30 | J178: 01.04.20 - 30.09.20 (6 months) | K178: As per FFR framework agreement | L178: 700 | M178: 1500 | N178: 8 | O178: 700 | P178: 1500 | Q178: 8 | R178: 700 | S178: 1500 | T178: 8 | U178: 500 | Y178: YES | AD178: 20 | AE178: 50 | AF178: 50 | AG178: 20 | AH178: 50 | AI178: 19.6 | AJ178: 49 | AM178: G
A179: 102.172 | B179: Reject | C179: 1.3 | D179: Equinicity | E179: NKEQ-1 | F179: DNO connection | G179: hybrid | H179: 2020-04-01 | I179: 2020-09-30 | J179: 01.04.20 - 30.09.20 (6 months) | K179: As per FFR framework agreement | L179: 1900 | M179: 2300 | N179: 4 | O179: 1900 | P179: 2300 | Q179: 4 | R179: 1900 | S179: 2300 | T179: 4 | U179: 500 | Y179: YES | AD179: 20 | AE179: 50 | AF179: 50 | AG179: 20 | AH179: 50 | AI179: 19.6 | AJ179: 49 | AM179: G
A180: 102.173 | B180: Reject | C180: 1.3 | D180: Equinicity | E180: NKEQ-2 | F180: DNO connection | G180: hybrid | H180: 2019-03-31 | I180: 2019-09-30 | J180: 31.03.19 - 30.09.19 (6 months) | K180: As per FFR framework agreement | L180: 2300 | M180: 700 | N180: 8 | O180: 2300 | P180: 700 | Q180: 8 | R180: 2300 | S180: 700 | T180: 8 | U180: 180 | Y180: YES | AD180: 7.2 | AE180: 18 | AF180: 18 | AG180: 7.2 | AH180: 18 | AI180: 2 | AJ180: 5 | AM180: H
A181: 102.174 | B181: Reject | C181: 1.3 | D181: Equinicity | E181: NKEQ-2 | F181: DNO connection | G181: hybrid | H181: 2019-04-01 | I181: 2019-09-30 | J181: 01.04.19 - 30.09.19 (6 months) | K181: As per FFR framework agreement | L181: 700 | M181: 1500 | N181: 8 | O181: 700 | P181: 1500 | Q181: 8 | R181: 700 | S181: 1500 | T181: 8 | U181: 180 | Y181: YES | AD181: 7.2 | AE181: 18 | AF181: 18 | AG181: 7.2 | AH181: 18 | AI181: 2.8 | AJ181: 7 | AM181: H
A182: 102.175 | B182: Reject | C182: 1.3 | D182: Equinicity | E182: NKEQ-2 | F182: DNO connection | G182: hybrid | H182: 2019-04-01 | I182: 2019-09-30 | J182: 01.04.19 - 30.09.19 (6 months) | K182: As per FFR framework agreement | L182: 1900 | M182: 2300 | N182: 4 | O182: 1900 | P182: 2300 | Q182: 4 | R182: 1900 | S182: 2300 | T182: 4 | U182: 180 | Y182: YES | AD182: 7.2 | AE182: 18 | AF182: 18 | AG182: 7.2 | AH182: 18 | AI182: 2.8 | AJ182: 7 | AM182: H
A183: 102.176 | B183: Reject | C183: 1.3 | D183: Equinicity | E183: NKEQ-2 | F183: DNO connection | G183: hybrid | H183: 2019-09-30 | I183: 2020-03-31 | J183: 30.09.19 - 31.03.20 (6 months) | K183: As per FFR framework agreement | L183: 2300 | M183: 700 | N183: 8 | O183: 2300 | P183: 700 | Q183: 8 | R183: 2300 | S183: 700 | T183: 8 | U183: 230 | Y183: YES | AD183: 9.2 | AE183: 23 | AF183: 23 | AG183: 9.2 | AH183: 23 | AI183: 3.6 | AJ183: 9 | AM183: H
A184: 102.177 | B184: Reject | C184: 1.3 | D184: Equinicity | E184: NKEQ-2 | F184: DNO connection | G184: hybrid | H184: 2019-10-01 | I184: 2020-03-31 | J184: 01.10.19 - 31.03.20 (6 months) | K184: As per FFR framework agreement | L184: 700 | M184: 1500 | N184: 8 | O184: 700 | P184: 1500 | Q184: 8 | R184: 700 | S184: 1500 | T184: 8 | U184: 230 | Y184: YES | AD184: 9.2 | AE184: 23 | AF184: 23 | AG184: 9.2 | AH184: 23 | AI184: 4.8 | AJ184: 12 | AM184: H
A185: 102.178 | B185: Reject | C185: 1.3 | D185: Equinicity | E185: NKEQ-2 | F185: DNO connection | G185: hybrid | H185: 2019-10-01 | I185: 2020-03-31 | J185: 01.10.19 - 31.03.20 (6 months) | K185: As per FFR framework agreement | L185: 1900 | M185: 2300 | N185: 4 | O185: 1900 | P185: 2300 | Q185: 4 | R185: 1900 | S185: 2300 | T185: 4 | U185: 230 | Y185: YES | AD185: 9.2 | AE185: 23 | AF185: 23 | AG185: 9.2 | AH185: 23 | AI185: 4.8 | AJ185: 12 | AM185: H
A186: 102.179 | B186: Reject | C186: 1.3 | D186: Equinicity | E186: NKEQ-2 | F186: DNO connection | G186: hybrid | H186: 2020-03-31 | I186: 2020-09-30 | J186: 31.03.20 - 30.09.20 (6 months) | K186: As per FFR framework agreement | L186: 2300 | M186: 700 | N186: 8 | O186: 2300 | P186: 700 | Q186: 8 | R186: 2300 | S186: 700 | T186: 8 | U186: 230 | Y186: YES | AD186: 9.2 | AE186: 23 | AF186: 23 | AG186: 9.2 | AH186: 23 | AI186: 3.6 | AJ186: 9 | AM186: H
A187: 102.18 | B187: Reject | C187: 1.3 | D187: Equinicity | E187: NKEQ-2 | F187: DNO connection | G187: hybrid | H187: 2020-04-01 | I187: 2020-09-30 | J187: 01.04.20 - 30.09.20 (6 months) | K187: As per FFR framework agreement | L187: 700 | M187: 1500 | N187: 8 | O187: 700 | P187: 1500 | Q187: 8 | R187: 700 | S187: 1500 | T187: 8 | U187: 230 | Y187: YES | AD187: 9.2 | AE187: 23 | AF187: 23 | AG187: 9.2 | AH187: 23 | AI187: 4.8 | AJ187: 12 | AM187: H
A188: 102.181 | B188: Reject | C188: 1.3 | D188: Equinicity | E188: NKEQ-2 | F188: DNO connection | G188: hybrid | H188: 2020-04-01 | I188: 2020-09-30 | J188: 01.04.20 - 30.09.20 (6 months) | K188: As per FFR framework agreement | L188: 1900 | M188: 2300 | N188: 4 | O188: 1900 | P188: 2300 | Q188: 4 | R188: 1900 | S188: 2300 | T188: 4 | U188: 230 | Y188: YES | AD188: 9.2 | AE188: 23 | AF188: 23 | AG188: 9.2 | AH188: 23 | AI188: 4.8 | AJ188: 12 | AM188: H
A189: 102.182 | B189: Reject | C189: 1.3 | D189: Equinicity | E189: NKEQ-3 | F189: DNO connection | G189: hybrid | H189: 2019-03-31 | I189: 2019-09-30 | J189: 31.03.19 - 30.09.19 (6 months) | K189: As per FFR framework agreement | L189: 2300 | M189: 700 | N189: 8 | O189: 2300 | P189: 700 | Q189: 8 | R189: 2300 | S189: 700 | T189: 8 | U189: 296 | Y189: YES | AD189: 11.6 | AE189: 29 | AF189: 29 | AG189: 11.6 | AH189: 29 | AI189: 10 | AJ189: 25 | AM189: I
A190: 102.183 | B190: Reject | C190: 1.3 | D190: Equinicity | E190: NKEQ-3 | F190: DNO connection | G190: hybrid | H190: 2019-04-01 | I190: 2019-09-30 | J190: 01.04.19 - 30.09.19 (6 months) | K190: As per FFR framework agreement | L190: 700 | M190: 1500 | N190: 8 | O190: 700 | P190: 1500 | Q190: 8 | R190: 700 | S190: 1500 | T190: 8 | U190: 296 | Y190: YES | AD190: 11.6 | AE190: 29 | AF190: 29 | AG190: 11.6 | AH190: 29 | AI190: 11.6 | AJ190: 29 | AM190: I
A191: 102.184 | B191: Reject | C191: 1.3 | D191: Equinicity | E191: NKEQ-3 | F191: DNO connection | G191: hybrid | H191: 2019-04-01 | I191: 2019-09-30 | J191: 01.04.19 - 30.09.19 (6 months) | K191: As per FFR framework agreement | L191: 1900 | M191: 2300 | N191: 4 | O191: 1900 | P191: 2300 | Q191: 4 | R191: 1900 | S191: 2300 | T191: 4 | U191: 296 | Y191: YES | AD191: 11.6 | AE191: 29 | AF191: 29 | AG191: 11.6 | AH191: 29 | AI191: 11.6 | AJ191: 29 | AM191: I
A192: 102.185 | B192: Reject | C192: 1.3 | D192: Equinicity | E192: NKEQ-3 | F192: DNO connection | G192: hybrid | H192: 2019-09-30 | I192: 2020-03-31 | J192: 30.09.19 - 31.03.20 (6 months) | K192: As per FFR framework agreement | L192: 2300 | M192: 700 | N192: 8 | O192: 2300 | P192: 700 | Q192: 8 | R192: 2300 | S192: 700 | T192: 8 | U192: 296 | Y192: YES | AD192: 11.6 | AE192: 29 | AF192: 29 | AG192: 11.6 | AH192: 29 | AI192: 10 | AJ192: 25 | AM192: I
A193: 102.186 | B193: Reject | C193: 1.3 | D193: Equinicity | E193: NKEQ-3 | F193: DNO connection | G193: hybrid | H193: 2019-10-01 | I193: 2020-03-31 | J193: 01.10.19 - 31.03.20 (6 months) | K193: As per FFR framework agreement | L193: 700 | M193: 1500 | N193: 8 | O193: 700 | P193: 1500 | Q193: 8 | R193: 700 | S193: 1500 | T193: 8 | U193: 296 | Y193: YES | AD193: 11.6 | AE193: 29 | AF193: 29 | AG193: 11.6 | AH193: 29 | AI193: 11.6 | AJ193: 29 | AM193: I
A194: 102.187 | B194: Reject | C194: 1.3 | D194: Equinicity | E194: NKEQ-3 | F194: DNO connection | G194: hybrid | H194: 2019-10-01 | I194: 2020-03-31 | J194: 01.10.19 - 31.03.20 (6 months) | K194: As per FFR framework agreement | L194: 1900 | M194: 2300 | N194: 4 | O194: 1900 | P194: 2300 | Q194: 4 | R194: 1900 | S194: 2300 | T194: 4 | U194: 296 | Y194: YES | AD194: 11.6 | AE194: 29 | AF194: 29 | AG194: 11.6 | AH194: 29 | AI194: 11.6 | AJ194: 29 | AM194: I
A195: 102.188 | B195: Reject | C195: 1.3 | D195: Equinicity | E195: NKEQ-3 | F195: DNO connection | G195: hybrid | H195: 2020-03-31 | I195: 2020-09-30 | J195: 31.03.20 - 30.09.20 (6 months) | K195: As per FFR framework agreement | L195: 2300 | M195: 700 | N195: 8 | O195: 2300 | P195: 700 | Q195: 8 | R195: 2300 | S195: 700 | T195: 8 | U195: 296 | Y195: YES | AD195: 11.6 | AE195: 29 | AF195: 29 | AG195: 11.6 | AH195: 29 | AI195: 10 | AJ195: 25 | AM195: I
A196: 102.189 | B196: Reject | C196: 1.3 | D196: Equinicity | E196: NKEQ-3 | F196: DNO connection | G196: hybrid | H196: 2020-04-01 | I196: 2020-09-30 | J196: 01.04.20 - 30.09.20 (6 months) | K196: As per FFR framework agreement | L196: 700 | M196: 1500 | N196: 8 | O196: 700 | P196: 1500 | Q196: 8 | R196: 700 | S196: 1500 | T196: 8 | U196: 296 | Y196: YES | AD196: 11.6 | AE196: 29 | AF196: 29 | AG196: 11.6 | AH196: 29 | AI196: 11.6 | AJ196: 29 | AM196: I
A197: 102.19 | B197: Reject | C197: 1.3 | D197: Equinicity | E197: NKEQ-3 | F197: DNO connection | G197: hybrid | H197: 2020-04-01 | I197: 2020-09-30 | J197: 01.04.20 - 30.09.20 (6 months) | K197: As per FFR framework agreement | L197: 1900 | M197: 2300 | N197: 4 | O197: 1900 | P197: 2300 | Q197: 4 | R197: 1900 | S197: 2300 | T197: =IF(R197>S197, (2400-R197+S197)/100, IF(R197=S197, 24, (S197-R197)/100)) -> 4 | U197: 296 | Y197: YES | AD197: 11.6 | AE197: 29 | AF197: 29 | AG197: 11.6 | AH197: 29 | AI197: 11.6 | AJ197: 29 | AM197: I
A198: 102.191 | B198: Reject | C198: 1.3 | D198: Equinicity | E198: NKEQ-4 | F198: DNO connection | G198: hybrid | H198: 2019-09-30 | I198: 2020-03-31 | J198: 30.09.19 - 31.03.20 (6 months) | K198: As per FFR framework agreement | L198: 2300 | M198: 700 | N198: =IF(L198>M198, (2400-L198+M198)/100, IF(L198=M198, 24, (M198-L198)/100)) -> 8 | O198: 2300 | P198: 700 | Q198: =IF(O198>P198, (2400-O198+P198)/100, IF(O198=P198, 24, (P198-O198)/100)) -> 8 | R198: 2300 | S198: 700 | T198: 8 | U198: 500 | Y198: YES | AD198: 19.6 | AE198: 49 | AF198: 49 | AG198: 19.6 | AH198: 49 | AI198: 16.4 | AJ198: 41 | AM198: J
A199: 102.192 | B199: Reject | C199: 1.3 | D199: Equinicity | E199: NKEQ-4 | F199: DNO connection | G199: hybrid | H199: 2019-10-01 | I199: 2020-03-31 | J199: =TEXT(H199,"DD.MM.YY")&" - "&TEXT(I199,"DD.MM.YY")&" ("&DATEDIF(H199,I199+1,"m")&" months)" -> 01.10.19 - 31.03.20 (6 months) | K199: As per FFR framework agreement | L199: 700 | M199: 1500 | N199: 8 | O199: 700 | P199: 1500 | Q199: 8 | R199: 700 | S199: 1500 | T199: 8 | U199: 500 | Y199: YES | AD199: 19.6 | AE199: 49 | AF199: 49 | AG199: 19.6 | AH199: 49 | AI199: 19.6 | AJ199: 49 | AM199: J
A200: 102.193 | B200: Reject | C200: 1.3 | D200: Equinicity | E200: NKEQ-4 | F200: DNO connection | G200: hybrid | H200: 2019-10-01 | I200: 2020-03-31 | J200: 01.10.19 - 31.03.20 (6 months) | K200: As per FFR framework agreement | L200: 1900 | M200: 2300 | N200: 4 | O200: 1900 | P200: 2300 | Q200: 4 | R200: 1900 | S200: 2300 | T200: 4 | U200: 500 | Y200: YES | AD200: 19.6 | AE200: 49 | AF200: 49 | AG200: 19.6 | AH200: 49 | AI200: 19.6 | AJ200: 49 | AM200: J
A201: 102.194 | B201: Reject | C201: 1.3 | D201: Equinicity | E201: NKEQ-4 | F201: DNO connection | G201: hybrid | H201: 2020-03-31 | I201: 2020-09-30 | J201: 31.03.20 - 30.09.20 (6 months) | K201: As per FFR framework agreement | L201: 2300 | M201: 700 | N201: 8 | O201: 2300 | P201: 700 | Q201: 8 | R201: 2300 | S201: 700 | T201: 8 | U201: 500 | Y201: YES | AD201: 19.6 | AE201: 49 | AF201: 49 | AG201: 19.6 | AH201: 49 | AI201: 16.4 | AJ201: 41 | AM201: J
... 213 more rows

Sheet Sheet2 (hidden)
A1: Tender Month | B1: =E2 -> 2018-06-01 | D1: Tender Round | E1: Tender Month | F1: Type | J1: Tender Round | K1: Tender Month
A2: First Delivery Month | B2: =EOMONTH(B1,0) -> 2018-06-30 | D2: =Sheet1!A6 -> 102 | E2: =VLOOKUP(D2,$J$2:$L$99,2,0) -> 2018-06-01 | F2: =VLOOKUP(D2,$J$2:$L$99,3,0) -> Full 1 | J2: 95 | K2: 2017-11-01 | L2: Full
A3: Last Delivery Month | B3: =IF(VLOOKUP(B1,E1:F31,2,0)="Month",EOMONTH(B1,1),IF(VLOOKUP(B1,E1:F31,2,0)="Full 1",EOMONTH(B1,27),EOMONTH(B1,30))) -> 2020-09-30 | D3: =D2+1 -> 103 | E3: =VLOOKUP(D3,$J$2:$L$99,2,0) -> 2018-07-01 | F3: =VLOOKUP(D3,$J$2:$L$99,3,0) -> Month | J3: 96 | K3: 2017-12-01 | L3: Month
D4: =D3+1 -> 104 | E4: 2018-08-01 | F4: Month | J4: 97 | K4: 2018-01-01 | L4: Full
D5: 105 | E5: 2018-09-01 | F5: Full 2 | J5: 98 | K5: 2018-02-01 | L5: Month
D6: 106 | E6: 2018-10-01 | F6: Month | J6: 99 | K6: 2018-03-01 | L6: Full
A7: Date 1 | B7: =E2 -> 2018-06-01 | D7: 107 | E7: 2018-11-01 | F7: Month | J7: 100 | K7: 2018-04-01 | L7: Month
A8: Date 2 | B8: =EOMONTH(E13,0) -> 2019-05-31 | D8: 108 | E8: 2018-12-01 | F8: Full 1 | J8: 101 | K8: 2018-05-01 | L8: Full
D9: 109 | E9: 2019-01-01 | F9: Month | J9: 102 | K9: 2018-06-01 | L9: Full 1
D10: 110 | E10: 2019-02-01 | F10: Month | J10: 103 | K10: 2018-07-01 | L10: Month
D11: 111 | E11: 2019-03-01 | F11: Full 2 | J11: 104 | K11: 2018-08-01 | L11: Month
D12: 112 | E12: 2019-04-01 | F12: Month | J12: 105 | K12: 2018-09-01 | L12: Full 2
D13: 113 | E13: 2019-05-01 | F13: Month | J13: 106 | K13: 2018-10-01 | L13: Month
D14: 114 | E14: 2019-06-01 | F14: Full 1 | J14: 107 | K14: 2018-11-01 | L14: Month
D15: 115 | E15: 2019-07-01 | F15: Month | J15: 108 | K15: 2018-12-01 | L15: Full 1
D16: 116 | E16: 2019-08-01 | F16: Month | J16: 109 | K16: 2019-01-01 | L16: Month
D17: 117 | E17: 2019-09-01 | F17: Full 2 | J17: 110 | K17: 2019-02-01 | L17: Month
D18: 118 | E18: 2019-10-01 | F18: Month | J18: 111 | K18: 2019-03-01 | L18: Full 2
D19: 119 | E19: 2019-11-01 | F19: Month | J19: 112 | K19: 2019-04-01 | L19: Month
D20: 120 | E20: 2019-12-01 | F20: Full 1 | J20: 113 | K20: 2019-05-01 | L20: Month
D21: 121 | E21: 2020-01-01 | F21: Month | J21: 114 | K21: 2019-06-01 | L21: Full 1
D22: 122 | E22: 2020-02-01 | F22: Month | J22: 115 | K22: 2019-07-01 | L22: Month
D23: 123 | E23: 2020-03-01 | F23: Full 2 | J23: 116 | K23: 2019-08-01 | L23: Month
D24: 124 | E24: 2020-04-01 | F24: Month | J24: 117 | K24: 2019-09-01 | L24: Full 2
D25: 125 | E25: 2020-05-01 | F25: Month | J25: 118 | K25: 2019-10-01 | L25: Month
D26: 126 | E26: 2020-06-01 | F26: Full 1 | J26: 119 | K26: 2019-11-01 | L26: Month
D27: 127 | E27: 2020-07-01 | F27: Month | J27: 120 | K27: 2019-12-01 | L27: Full 1
D28: 128 | E28: 2020-08-01 | F28: Month | J28: 121 | K28: 2020-01-01 | L28: Month
D29: 129 | E29: 2020-09-01 | F29: Full 2 | J29: 122 | K29: 2020-02-01 | L29: Month
D30: 130 | E30: 2020-10-01 | F30: Month | J30: 123 | K30: 2020-03-01 | L30: Full 2
D31: 131 | E31: 2020-11-01 | F31: Month | J31: 124 | K31: 2020-04-01 | L31: Month
J32: 125 | K32: 2020-05-01 | L32: Month
J33: 126 | K33: 2020-06-01 | L33: Full 1
J34: 127 | K34: 2020-07-01 | L34: Month
J35: 128 | K35: 2020-08-01 | L35: Month
J36: 129 | K36: 2020-09-01 | L36: Full 2
J37: 130 | K37: 2020-10-01 | L37: Month
J38: 131 | K38: 2020-11-01 | L38: Month
J39: 132 | K39: 2020-12-01 | L39: Full 1
J40: 133 | K40: 2021-01-01 | L40: Month
J41: 134 | K41: 2021-02-01 | L41: Month
J42: 135 | K42: 2021-03-01 | L42: Full 2
J43: 136 | K43: 2021-04-01 | L43: Month
J44: 137 | K44: 2021-05-01 | L44: Month
J45: 138 | K45: 2021-06-01 | L45: Full 1
J46: 139 | K46: 2021-07-01 | L46: Month
J47: 140 | K47: 2021-08-01 | L47: Month
J48: 141 | K48: 2021-09-01 | L48: Full 2
J49: 142 | K49: 2021-10-01 | L49: Month
J50: 143 | K50: 2021-11-01 | L50: Month
J51: 144 | K51: 2021-12-01 | L51: Full 1
J52: 145 | K52: 2022-01-01 | L52: Month
J53: 146 | K53: 2022-02-01 | L53: Month
J54: 147 | K54: 2022-03-01 | L54: Full 2
J55: 148 | K55: 2022-04-01 | L55: Month
J56: 149 | K56: 2022-05-01 | L56: Month
J57: 150 | K57: 2022-06-01 | L57: Full 1
J58: 151 | K58: 2022-07-01 | L58: Month
J59: 152 | K59: 2022-08-01 | L59: Month
J60: 153 | K60: 2022-09-01 | L60: Full 2
J61: 154 | K61: 2022-10-01 | L61: Month
J62: 155 | K62: 2022-11-01 | L62: Month
J63: 156 | K63: 2022-12-01 | L63: Full 1
J64: 157 | K64: 2023-01-01 | L64: Month
J65: 158 | K65: 2023-02-01 | L65: Month
J66: 159 | K66: 2023-03-01 | L66: Full 2
J67: 160 | K67: 2023-04-01 | L67: Month
J68: 161 | K68: 2023-05-01 | L68: Month
J69: 162 | K69: 2023-06-01 | L69: Full 1
J70: 163 | K70: 2023-07-01 | L70: Month
J71: 164 | K71: 2023-08-01 | L71: Month
J72: 165 | K72: 2023-09-01 | L72: Full 2
J73: 166 | K73: 2023-10-01 | L73: Month
J74: 167 | K74: 2023-11-01 | L74: Month
J75: 168 | K75: 2023-12-01 | L75: Full 1
J76: 169 | K76: 2024-01-01 | L76: Month
J77: 170 | K77: 2024-02-01 | L77: Month
J78: 171 | K78: 2024-03-01 | L78: Full 2
J79: 172 | K79: 2024-04-01 | L79: Month
J80: 173 | K80: 2024-05-01 | L80: Month
J81: 174 | K81: 2024-06-01 | L81: Full 1
J82: 175 | K82: 2024-07-01 | L82: Month
J83: 176 | K83: 2024-08-01 | L83: Month
J84: 177 | K84: 2024-09-01 | L84: Full 2
J85: 178 | K85: 2024-10-01 | L85: Month
J86: 179 | K86: 2024-11-01 | L86: Month
J87: 180 | K87: 2024-12-01 | L87: Full 1
J88: 181 | K88: 2025-01-01 | L88: Month
J89: 182 | K89: 2025-02-01 | L89: Month
J90: 183 | K90: 2025-03-01 | L90: Full 2
J91: 184 | K91: 2025-04-01 | L91: Month
J92: 185 | K92: 2025-05-01 | L92: Month
J93: 186 | K93: 2025-06-01 | L93: Full 1
J94: 187 | K94: 2025-07-01 | L94: Month
J95: 188 | K95: 2025-08-01 | L95: Month
J96: 189 | K96: 2025-09-01 | L96: Full 2
J97: 190 | K97: 2025-10-01 | L97: Month
J98: 191 | K98: 2025-11-01 | L98: Month
J99: 192 | K99: 2025-12-01 | L99: Full 1

Sheet Sheet3 (hidden)
A1: TO connection / DNO connection | B1: Generation Type
A2: TO connection | B2: Gas
A3: DNO connection | B3: Hydro
B4: Diesel
B5: Bio Fuel
B6: Coal
B7: Wind
B8: Solar
B9: Battery
B10: Interconnector
B11: Duel Fuel
B12: DSF: Load response
B13: DSF: Distributed generation (onsite)
B14: DSF: Storage (onsite)
B15: DSF: Distributed generation (for export)
B16: DSF: Storage (for export)
B17: Other

Sheet Auto (hidden)
A1: Path to the Tenders Folder | B1: S:\OandT\EBandET\Contracts\Services & Projects\Firm Frequency Response Service\FFR spreadshhet test\Ariba Received
A2: Tender Round | B2: 97

Sheet Reference for months (hidden)
A1: 2018-05-01 | B1: 2018-06-01 | C1: 2018-07-01 | D1: 2018-08-01 | E1: 2018-09-01 | F1: 2018-10-01 | G1: 2018-11-01 | H1: 2018-12-01 | I1: 2019-01-01 | J1: 2019-02-01 | K1: 2019-03-01 | L1: 2019-04-01 | M1: 2019-05-01 | N1: 2019-06-01 | O1: 2019-07-01 | P1: 2019-08-01 | Q1: 2019-09-01 | R1: 2019-10-01 | S1: 2019-11-01 | T1: 2019-12-01 | U1: 2020-01-01 | V1: 2020-02-01 | W1: 2020-03-01 | X1: 2020-04-01 | Y1: 2020-05-01 | Z1: 2020-06-01 | AA1: 2020-07-01 | AB1: 2020-08-01 | AC1: 2020-09-01 | AD1: 2020-10-01 | AE1: 2020-11-01 | AF1: 2020-12-01 | AG1: 2021-01-01 | AH1: 2021-02-01 | AI1: 2021-03-01 | AK1: 2021-05-01 | AL1: 2021-06-01
A2: 2018-06-01 | B2: 2018-07-01 | C2: 2018-08-01 | D2: 2018-09-01 | E2: 2018-10-01 | F2: 2018-11-01 | G2: 2018-12-01 | H2: 2019-01-01 | I2: 2019-02-01 | J2: 2019-03-01 | K2: 2019-04-01 | L2: 2019-05-01 | M2: 2019-06-01 | N2: 2019-07-01 | O2: 2019-08-01 | P2: 2019-09-01 | Q2: 2019-10-01 | R2: 2019-11-01 | S2: 2019-12-01 | T2: 2020-01-01 | U2: 2020-02-01 | V2: 2020-03-01 | W2: 2020-04-01 | X2: 2020-05-01 | Y2: 2020-06-01 | Z2: 2020-07-01 | AA2: 2020-08-01 | AB2: 2020-09-01 | AC2: 2020-10-01 | AD2: 2020-11-01 | AE2: 2020-12-01 | AF2: 2021-01-01 | AG2: 2021-02-01 | AH2: 2021-03-01 | AI2: 2021-04-01 | AJ2: 2021-05-01 | AK2: 2021-06-01 | AL2: 2021-07-01
B3: 2018-07-01 | E3: 2018-10-01 | H3: 2019-01-01 | K3: 2019-04-01 | N3: 2019-07-01 | Q3: 2019-10-01 | T3: 2020-01-01 | W3: 2020-04-01 | Z3: 2020-07-01 | AC3: 2020-10-01 | AF3: 2021-01-01 | AI3: 2021-04-01 | AL3: 2021-07-01
B4: 2018-08-01 | E4: 2018-11-01 | H4: 2019-02-01 | K4: 2019-05-01 | N4: 2019-08-01 | Q4: 2019-11-01 | T4: 2020-02-01 | W4: 2020-05-01 | Z4: 2020-08-01 | AC4: 2020-11-01 | AF4: 2021-02-01 | AI4: 2021-05-01 | AL4: 2021-08-01
B5: 2018-09-01 | E5: 2018-12-01 | H5: 2019-03-01 | K5: 2019-06-01 | N5: 2019-09-01 | Q5: 2019-12-01 | T5: 2020-03-01 | W5: 2020-06-01 | Z5: 2020-09-01 | AC5: 2020-12-01 | AF5: 2021-03-01 | AI5: 2021-06-01 | AL5: 2021-09-01
B6: 2018-10-01 | E6: 2018-10-01 | H6: 2019-04-01 | K6: 2019-04-01 | N6: 2019-10-01 | Q6: 2019-10-01 | T6: 2020-04-01 | W6: 2020-04-01 | Z6: 2020-10-01 | AC6: 2020-10-01 | AF6: 2021-04-01 | AI6: 2021-04-01 | AL6: 2021-10-01
B7: 2018-11-01 | E7: 2018-11-01 | H7: 2019-05-01 | K7: 2019-05-01 | N7: 2019-11-01 | Q7: 2019-11-01 | T7: 2020-05-01 | W7: 2020-05-01 | Z7: 2020-11-01 | AC7: 2020-11-01 | AF7: 2021-05-01 | AI7: 2021-05-01 | AL7: 2021-11-01
B8: 2018-12-01 | E8: 2018-12-01 | H8: 2019-06-01 | K8: 2019-06-01 | N8: 2019-12-01 | Q8: 2019-12-01 | T8: 2020-06-01 | W8: 2020-06-01 | Z8: 2020-12-01 | AC8: 2020-12-01 | AF8: 2021-06-01 | AI8: 2021-06-01 | AL8: 2021-12-01
B9: 2019-01-01 | E9: 2019-01-01 | H9: 2019-07-01 | K9: 2019-07-01 | N9: 2020-01-01 | Q9: 2020-01-01 | T9: 2020-07-01 | W9: 2020-07-01 | Z9: 2021-01-01 | AC9: 2021-01-01 | AF9: 2021-07-01 | AI9: 2021-07-01 | AL9: 2022-01-01
B10: 2019-02-01 | E10: 2019-02-01 | H10: 2019-08-01 | K10: 2019-08-01 | N10: 2020-02-01 | Q10: 2020-02-01 | T10: 2020-08-01 | W10: 2020-08-01 | Z10: 2021-02-01 | AC10: 2021-02-01 | AF10: 2021-08-01 | AI10: 2021-08-01 | AL10: 2022-02-01
B11: 2019-03-01 | E11: 2019-03-01 | H11: 2019-09-01 | K11: 2019-09-01 | N11: 2020-03-01 | Q11: 2020-03-01 | T11: 2020-09-01 | W11: 2020-09-01 | Z11: 2021-03-01 | AC11: 2021-03-01 | AF11: 2021-09-01 | AI11: 2021-09-01 | AL11: 2022-03-01
B12: 2019-04-01 | E12: 2019-04-01 | H12: 2019-10-01 | K12: 2019-10-01 | N12: 2020-04-01 | Q12: 2020-04-01 | T12: 2020-10-01 | W12: 2020-10-01 | Z12: 2021-04-01 | AC12: 2021-04-01 | AF12: 2021-10-01 | AI12: 2021-10-01 | AL12: 2022-04-01
B13: 2019-05-01 | E13: 2019-05-01 | H13: 2019-11-01 | K13: 2019-11-01 | N13: 2020-05-01 | Q13: 2020-05-01 | T13: 2020-11-01 | W13: 2020-11-01 | Z13: 2021-05-01 | AC13: 2021-05-01 | AF13: 2021-11-01 | AI13: 2021-11-01 | AL13: 2022-05-01
B14: 2019-06-01 | E14: 2019-06-01 | H14: 2019-12-01 | K14: 2019-12-01 | N14: 2020-06-01 | Q14: 2020-06-01 | T14: 2020-12-01 | W14: 2020-12-01 | Z14: 2021-06-01 | AC14: 2021-06-01 | AF14: 2021-12-01 | AI14: 2021-12-01 | AL14: 2022-06-01
B15: 2019-07-01 | E15: 2019-07-01 | H15: 2020-01-01 | K15: 2020-01-01 | N15: 2020-07-01 | Q15: 2020-07-01 | T15: 2021-01-01 | W15: 2021-01-01 | Z15: 2021-07-01 | AC15: 2021-07-01 | AF15: 2022-01-01 | AI15: 2022-01-01 | AL15: 2022-07-01
B16: 2019-08-01 | E16: 2019-08-01 | H16: 2020-02-01 | K16: 2020-02-01 | N16: 2020-08-01 | Q16: 2020-08-01 | T16: 2021-02-01 | W16: 2021-02-01 | Z16: 2021-08-01 | AC16: 2021-08-01 | AF16: 2022-02-01 | AI16: 2022-02-01 | AL16: 2022-08-01
B17: 2019-09-01 | E17: 2019-09-01 | H17: 2020-03-01 | K17: 2020-03-01 | N17: 2020-09-01 | Q17: 2020-09-01 | T17: 2021-03-01 | W17: 2021-03-01 | Z17: 2021-09-01 | AC17: 2021-09-01 | AF17: 2022-03-01 | AI17: 2022-03-01 | AL17: 2022-09-01
B18: 2019-10-01 | E18: 2019-10-01 | H18: 2020-04-01 | K18: 2020-04-01 | N18: 2020-10-01 | Q18: 2020-10-01 | T18: 2021-04-01 | W18: 2021-04-01 | Z18: 2021-10-01 | AC18: 2021-10-01 | AF18: 2022-04-01 | AI18: 2022-04-01 | AL18: 2022-10-01
B19: 2019-11-01 | E19: 2019-11-01 | H19: 2020-05-01 | K19: 2020-05-01 | N19: 2020-11-01 | Q19: 2020-11-01 | T19: 2021-05-01 | W19: 2021-05-01 | Z19: 2021-11-01 | AC19: 2021-11-01 | AF19: 2022-05-01 | AI19: 2022-05-01 | AL19: 2022-11-01
B20: 2019-12-01 | E20: 2019-12-01 | H20: 2020-06-01 | K20: 2020-06-01 | N20: 2020-12-01 | Q20: 2020-12-01 | T20: 2021-06-01 | W20: 2021-06-01 | Z20: 2021-12-01 | AC20: 2021-12-01 | AF20: 2022-06-01 | AI20: 2022-06-01 | AL20: 2022-12-01
B21: 2020-01-01 | E21: 2020-01-01 | H21: 2020-07-01 | K21: 2020-07-01 | N21: 2021-01-01 | Q21: 2021-01-01 | T21: 2021-07-01 | W21: 2021-07-01 | Z21: 2022-01-01 | AC21: 2022-01-01 | AF21: 2022-07-01 | AI21: 2022-07-01 | AL21: 2023-01-01
B22: 2020-02-01 | E22: 2020-02-01 | H22: 2020-08-01 | K22: 2020-08-01 | N22: 2021-02-01 | Q22: 2021-02-01 | T22: 2021-08-01 | W22: 2021-08-01 | Z22: 2022-02-01 | AC22: 2022-02-01 | AF22: 2022-08-01 | AI22: 2022-08-01 | AL22: 2023-02-01
B23: 2020-03-01 | E23: 2020-03-01 | H23: 2020-09-01 | K23: 2020-09-01 | N23: 2021-03-01 | Q23: 2021-03-01 | T23: 2021-09-01 | W23: 2021-09-01 | Z23: 2022-03-01 | AC23: 2022-03-01 | AF23: 2022-09-01 | AI23: 2022-09-01 | AL23: 2023-03-01
B24: 2020-04-01 | E24: 2020-04-01 | H24: 2020-10-01 | K24: 2020-10-01 | N24: 2021-04-01 | Q24: 2021-04-01 | T24: 2021-10-01 | W24: 2021-10-01 | Z24: 2022-04-01 | AC24: 2022-04-01 | AF24: 2022-10-01 | AI24: 2022-10-01 | AL24: 2023-04-01
B25: 2020-05-01 | E25: 2020-05-01 | H25: 2020-11-01 | K25: 2020-11-01 | N25: 2021-05-01 | Q25: 2021-05-01 | T25: 2021-11-01 | W25: 2021-11-01 | Z25: 2022-05-01 | AC25: 2022-05-01 | AF25: 2022-11-01 | AI25: 2022-11-01 | AL25: 2023-05-01
B26: 2020-06-01 | E26: 2020-06-01 | H26: 2020-12-01 | K26: 2020-12-01 | N26: 2021-06-01 | Q26: 2021-06-01 | T26: 2021-12-01 | W26: 2021-12-01 | Z26: 2022-06-01 | AC26: 2022-06-01 | AF26: 2022-12-01 | AI26: 2022-12-01 | AL26: 2023-06-01
B27: 2020-07-01 | E27: 2020-07-01 | H27: 2021-01-01 | K27: 2021-01-01 | N27: 2021-07-01 | Q27: 2021-07-01 | T27: 2022-01-01 | W27: 2022-01-01 | Z27: 2022-07-01 | AC27: 2022-07-01 | AF27: 2023-01-01 | AI27: 2023-01-01 | AL27: 2023-07-01
B28: 2020-08-01 | E28: 2020-08-01 | H28: 2021-02-01 | K28: 2021-02-01 | N28: 2021-08-01 | Q28: 2021-08-01 | T28: 2022-02-01 | W28: 2022-02-01 | Z28: 2022-08-01 | AC28: 2022-08-01 | AF28: 2023-02-01 | AI28: 2023-02-01 | AL28: 2023-08-01
B29: 2020-09-01 | E29: 2020-09-01 | H29: 2021-03-01 | K29: 2021-03-01 | N29: 2021-09-01 | Q29: 2021-09-01 | T29: 2022-03-01 | W29: 2022-03-01 | Z29: 2022-09-01 | AC29: 2022-09-01 | AF29: 2023-03-01 | AI29: 2023-03-01 | AL29: 2023-09-01
E30: 2020-10-01 | K30: 2021-04-01 | Q30: 2021-10-01 | W30: 2022-04-01 | AC30: 2022-10-01 | AI30: 2023-04-01
E31: 2020-11-01 | K31: 2021-05-01 | Q31: 2021-11-01 | W31: 2022-05-01 | AC31: 2022-11-01 | AI31: 2023-05-01
E32: 2020-12-01 | K32: 2021-06-01 | Q32: 2021-12-01 | W32: 2022-06-01 | AC32: 2022-12-01 | AI32: 2023-06-01
E33: 2021-01-01 | K33: 2021-07-01 | Q33: 2022-01-01 | W33: 2022-07-01 | AC33: 2023-01-01 | AI33: 2023-07-01
E34: 2021-02-01 | K34: 2021-08-01 | Q34: 2022-02-01 | W34: 2022-08-01 | AC34: 2023-02-01 | AI34: 2023-08-01
E35: 2021-03-01 | K35: 2021-09-01 | Q35: 2022-03-01 | W35: 2022-09-01 | AC35: 2023-03-01 | AI35: 2023-09-01

Sheet Drop down boxes (hidden)
B1: Jun_18 | C1: 2018-06-30 | D1: 2018-07-31 | E1: Sep_18 | F1: 2018-09-30 | G1: 2018-10-31 | H1: Dec_18 | I1: 2018-12-31 | J1: 2019-01-31 | K1: Mar_19 | L1: 2019-03-31 | M1: 2019-04-30 | O1: 2300 | P1: 2300
B2: 6 | C2: 2018-07-01 | D2: 2018-09-30 | E2: 9 | F2: 2018-10-01 | G2: 2018-12-31 | H2: 12 | I2: 2019-01-01 | J2: 2019-03-31 | K2: 3 | L2: 2019-04-01 | M2: 2019-06-30 | O2: 300
C3: 2018-09-30 | D3: 2019-03-31 | F3: 2019-03-31 | G3: 2019-03-31 | I3: 2019-03-31 | J3: 2019-09-30 | L3: 2019-09-30 | M3: 2019-09-30 | O3: 700
C4: 2018-10-01 | D4: 2019-09-30 | F4: 2019-04-01 | G4: 2019-09-30 | I4: 2019-04-01 | J4: 2020-03-31 | L4: 2019-10-01 | M4: 2020-03-31 | O4: 1100
C5: 2019-03-31 | D5: 2020-03-31 | F5: 2019-09-30 | G5: 2020-03-31 | I5: 2019-09-30 | J5: 2020-09-30 | L5: 2020-03-31 | M5: 2020-09-30 | O5: 1500
C6: 2019-04-01 | D6: 2020-09-30 | F6: 2019-10-01 | G6: 2020-09-30 | I6: 2019-10-01 | J6: 2021-03-31 | L6: 2020-04-01 | M6: 2021-03-31 | O6: 1900
C7: 2019-09-30 | F7: 2020-03-31 | G7: 2021-03-31 | I7: 2020-03-31 | L7: 2020-09-30 | M7: 2021-09-30
C8: 2019-10-01 | F8: 2020-04-01 | I8: 2020-04-01 | L8: 2020-10-01
C9: 2020-03-31 | F9: 2020-09-30 | I9: 2020-09-30 | L9: 2021-03-31
C10: 2020-04-01 | F10: 2020-10-01 | I10: 2020-10-01 | L10: 2021-04-01
A13: Today's date | C13: Start dates | D13: End dates
A14: =TODAY() -> 2018-06-18 | C14: =IF(DAY(A14)<7,EOMONTH(A14, 0),EOMONTH(A14,1)) -> 2018-07-31 | D14: =IF(DAY($A$14)<7, EOMONTH($A$14,1), EOMONTH($A$14,2)) -> 2018-08-31
C15: =IF(DAY(A14)<7, EOMONTH(A14,0)+1, EOMONTH(A14,1)+1) -> 2018-08-01 | D15: =IF(DAY($A$14)<7, EOMONTH($A$14,3), EOMONTH($A$14,4)) -> 2018-10-31
C16: =IF(ISODD(MONTH($A$14)),IF(DAY($A$14)<7, EOMONTH($A$14,6), EOMONTH($A$14,4)), IF(DAY($A$14)<7, EOMONTH($A$14,3), EOMONTH($A$14,7))) -> 2019-01-31 | D16: =IF(ISODD(MONTH($A$14)),IF(DAY($A$14)<7, EOMONTH($A$14,6), EOMONTH($A$14,10)), IF(DAY($A$14)<7, EOMONTH($A$14,9), EOMONTH($A$14,7))) -> 2019-01-31
C17: =IF(ISODD(MONTH($A$14)),IF(DAY($A$14)<7, EOMONTH($A$14,6)+1, EOMONTH($A$14,4)+1), IF(DAY($A$14)<7, EOMONTH($A$14,3)+1, EOMONTH($A$14,7)+1)) -> 2019-02-01 | D17: =IF(ISODD(MONTH($A$14)),IF(DAY($A$14)<7, EOMONTH($A$14,12), EOMONTH($A$14,16)), IF(DAY($A$14)<7, EOMONTH($A$14,15), EOMONTH($A$14,13))) -> 2019-07-31
C18: =IF(ISODD(MONTH($A$14)),IF(DAY($A$14)<7, EOMONTH($A$14,12), EOMONTH($A$14,10)), IF(DAY($A$14)<7, EOMONTH($A$14,9), EOMONTH($A$14,13))) -> 2019-07-31 | D18: =IF(ISODD(MONTH($A$14)),IF(DAY($A$14)<7, EOMONTH($A$14,18), EOMONTH($A$14,22)), IF(DAY($A$14)<7, EOMONTH($A$14,21), EOMONTH($A$14,19))) -> 2020-01-31
C19: =IF(ISODD(MONTH($A$14)),IF(DAY($A$14)<7, EOMONTH($A$14,12)+1, EOMONTH($A$14,10)+1), IF(DAY($A$14)<7, EOMONTH($A$14,9)+1, EOMONTH($A$14,13)+1)) -> 2019-08-01 | D19: =IF(ISODD(MONTH($A$14)),IF(DAY($A$14)<7, EOMONTH($A$14,24), EOMONTH($A$14,28)), IF(DAY($A$14)<7, EOMONTH($A$14,27), EOMONTH($A$14,25))) -> 2020-07-31
C20: =IF(ISODD(MONTH($A$14)),IF(DAY($A$14)<7, EOMONTH($A$14,18), EOMONTH($A$14,16)), IF(DAY($A$14)<7, EOMONTH($A$14,15), EOMONTH($A$14,19))) -> 2020-01-31 | D20: =IF(ISODD(MONTH(A14)), (IF(DAY(A14)<7, EOMONTH(A14,30), "")), IF(DAY(A14)<7, "", EOMONTH(A14,31))) -> 2021-01-31
C21: =IF(ISODD(MONTH($A$14)),IF(DAY($A$14)<7, EOMONTH($A$14,18)+1, EOMONTH($A$14,16)+1), IF(DAY($A$14)<7, EOMONTH($A$14,15)+1, EOMONTH($A$14,19)+1)) -> 2020-02-01
C22: =IF(ISODD(MONTH($A$14)),IF(DAY($A$14)<7, EOMONTH($A$14,24), EOMONTH($A$14,22)), IF(DAY($A$14)<7, EOMONTH($A$14,21), EOMONTH($A$14,25))) -> 2020-07-31
C23: =IF(ISODD(MONTH($A$14)),IF(DAY($A$14)<7, EOMONTH($A$14,24)+1, EOMONTH($A$14,22)+1), IF(DAY($A$14)<7, EOMONTH($A$14,21)+1, EOMONTH($A$14,25)+1)) -> 2020-08-01
